Workbook

Sheet Disclaimer

Sheet LDCcomments (hidden)
A1: Originator | B1: EMP Template | C1: Issues/Items Requiring Clarification => Version 2.1? | D1: Guide | E1: EM Support Services | F1: Action Items | G1: Status
A2: Kyle Ohearn | B2: First Principles for EM plan; Must be Useful to the EMs and their companies Not a bible/book No plan element is mandatory Phase 1 plan should be considered the first 6 month plan with Year 2 and 3 plans updated/ continually improved Plan to document yearly kW and kWh targets Plan to pull project title, kW & kWh savings, cost from QR’s (make sure QR has appropriate fields for EM plan tab) Use non energy language for CFO and other executive audience Formatted to be a good printable executive document | C2: All addressed or in progress
A3: Kyle Ohearn | B3: Executive Summary - Energy Efficiency Targets o Year 1 Target  kW and kWh o Year 2 Target  kW and kWh o Year 3 Target  kW and KWh | C3: Addressed
A4: Kyle Ohearn | B4: Check list questions: Who are the executive approvers ? Do you have the utility account numbers, utility contact names, utility data, other meter information ? links? What are the corporate hurdle rates for capital projects? NPV? Simple payback, IRR?, etc?? | C4: Incorporated but in slightly different format per Kyle's direction
A5: Kyle Ohearn | B5: Energy Management Goals (policy, targets, goals) Does your corporation have an Energy Savings plan/policy/ Sustainability plan/policy. If Yes, Link to policy or copy into an appendix tab? Do the corporate plans have identified SMARTER metrics/ goals? (SMARTER plan/policies ? => specific (kW, kWh?, measurable, attainable, relevant, time-bound, evaluate, re-evaluate) Does your company have Energy dashboards for executives? If yes link what do they look like Do you have procurement rules for energy saving equipment? : rephrase as a question about energy procurement policies? | C5: Somewhat addressed per Kyle's direction
A6: Kyle Ohearn | B6: Energy Management Team (accountability) - List Executive/Management Sponsor - List Energy Champion - Other team members - Meeting schedule - Meeting agenda | C6: Addressed
A7: Kyle Ohearn | B7: Corporate hurdle rate for capital projects? What are parameters to have your capital projects approved? Do you know the approval parameters to get O&M projects approved? Do you know if your executives have KPI’s? If Yes, what are they? Do you have dedicated budgets? What are the budget cycles? | C7: Addressed
A8: Kyle Ohearn | B8: Best Practice Questions: Are you able to chart your energy/use profile? Do you need any assistance to collect the information? Can you spot trends with your utility data? Do you know your main energy uses/ systems? Are they sub-metered? Do you know how your facility is metered? | C8: Addressed
A9: Kyle Ohearn | B9: Best Practice Tab Are you able to chart your energy/use profile? Do you need any assistance to collect the information? Can you spot trends with your utility data Do you know your main energy uses/ systems? Are they sub-metered? Do you know how your facility is metered? Is there a sub-meter plan? Energy Modelling | C9: Partially addressed
A10: Kyle Ohearn | B10: Measurement and Evaluation (what’s available & how to evaluate success?) - Consider for Phase 2 | C10: not addressed
A11: Kyle Ohearn | B11: Energy Baseline Model (SEM best practice for O&M savings) - Consider for Phase 2 | C11: tab in progress for phase 2
A12: Kyle Ohearn | B12: Year 1 target kW and kWh plan project listing Completed Project L: Project Title, Project Cost, kW and kWh savings? Project class (capital? Non incented? O&M ?) Dollars saved?  Pull from QR Pipe line Project Title, costs  Pull from QR Difference ( calculate delta) How much money is planned to save in Year 1? How much money was saved? Year 2 target kW and kWh Completed Pipe line Difference How much money is planned to save in Year 2? How much money was saved? Year 3 target kW and kWh Completed Pipe line Difference How much money is planned to save in Year 3? How much money was saved? | C12: Addressed and added General Info (Intro) Tab
A13: Kyle Ohearn | B13: Energy Efficiency Opportinity Identification o Energy scans o Kaizen events o Employee engagement program Communication Strategy o Dashboard o Newsletter o Case studies/project highlights o Other Continous Improvement o Energy Management Plan Maintenance o Lessons Learnt  What worked, What did not?  Course corrections  Non enenergy benefits BEST PRACTICES | C13: Removed from EMP per Kyle's direction
A14: Gord Davies | B14: 1. Add an additional tab to the workbook to provide an area for workbook / worksheet description. Have a sort description of the content function and value of each tab, and provide an overview of how the worksheets are related. Highlight the total information the workbook provides. Describe use on quarterly, annual and continued use. Include an email address and a contact name for an Energy Manager to ask questions | C14: - intros and descriptions will be added to top of each tab - navigation buttons and intro tab flow chart describes process - TR contact to be added to the intro tab
A15: Gord Davies | B15: 2. Include a brief description at the top of each tab which provides and overview of the information presented. | C15: partially complete but intent is there to provide
A16: Gord Davies | B16: 3. In the energy management plan tab allow an area for the EM to write the answer to the question asked to allow for explanations if warranted | C16: EMP restructured per Kyle's comments
A17: Gord Davies | B17: 4. In the quarterly report tab provide a line that specifies the exact timeframe that a given quarterly report covers. For example (April 1 to June 30th 2016) | C17: CR can add this as part off their tech review
A18: Gord Davies | B18: 5. In the Energy Manager Dashboard link what quarter this is to identify how up to date the information is that is presented. | C18: Dashboard will be flexible so that EM can choose Q# or Term# or cummulative
A19: Gord Davies | B19: 6. In the executive tab define how calculations are done. i.e. (what rates are used and why). | C19: Will do - phase 2
A20: Gord Davies | B20: 7. In the executive tab capture other valuable savings to an organization gas etc. | C20: Will do - phase 2
A21: Mike Pardal | B21: Do we need a financial target up front in the annual goals section? MWh is really the only goal | C21: No, per Kyle's direction
B22: Should we put an anniversary date, term and deliverables with due dates based on start date in that section – keep it top of mind - i.e. Q Reports, EMP etc. | C22: Deliverable tracker added to Intro tab. Automatic based on EM start date.
B23: Aside from adding projects in the report how can we capture other accomplishments or activities planned to evaluate performance and potential | C23: Potential to add a planned activities section (i.e. Employee Enagagement, Energy Scans, etc) to EMP tab
B24: Do we want a notes section or somewhere for them to document the answers to these questions – document the action taken and capture critical customer info - it can be passed on to the utility or another resource should the EM leave | C24: - customer info captured in intro tab - moved away from a question fromat per Kyle's direction
B25: Project evaluation can be production based or outside the standard financial metrics | C25: - good point, flexibility needed. This section is moved to tips per Kyle's direction. Opportunity to reverse decision and improve EMP.
B26: Quarterly report – applications type doesn’t have option for prescriptive or M&T or audit etc. | C26: - CR to add
A27: Dan Roberts | C27: • Coordination with new IS • EMP Template ( Underway) • Access to TR services (This topic) • Coordination with IESO EM strategy • EM Rules 2.0 R1
A28: Dan Roberts | C28: Participant Agreements: 1. Should LDCs be customizing these things? 2. If they do customize them is Anna available to assist? 3. Should edits lead to a revised provincial standard PA? If so how?
A29: Kyle Ohearn | C29: Verification’ as used here in the program rules ‘gross verified savings as verified by the Technical Reviewer and based on projects placed into service in the contract year’. Based on the highlights below ( see 2.1.2) , there are 4 conditions: 1. Gross verified savings 2. as verified by the Technical Reviewer 3. and based on Projects placed into service 4. in the contract year
A30: Kyle Ohearn | C30: 1. What will be the ‘gross savings’ for incented projects: a. QR reported data on incented projects? b. or Approved Post Project data as approved by the LDC ? c. or submitted Post Project data? d. Other?
A31: Kyle Ohearn | C31: 2. It is uncertain if the Technical Reviewer (TR) will have access to CDM-IS, so how does the TR confirm QR reported savings, in-service dates and other project details if they do not have access to application information? a. Can the TR have the LDC confirm the incented gross savings and if so how is it documented? b. Does the EM submit the post project application documents to the TR for each project? c. Do we apply cost effective thresholds such as Post Project savings over XXX kWh only require LDC confirmation, and post project savings with less than XXX kWh QR reporting is suffice.
A32: Kyle Ohearn | C32: 3. What happens if a large custom project requires a year of M&V before it is approved for final payment, does the TR wait for a whole year for the M&V results? 4. What happens if projects in service dates happen just past the end of a contract year? 5. How does the TR collaborate with LDCs to confirm gross savings? 6. How does the LDC document their confirmation of the incented project gross savings? 7. Are discounted project evaluated savings for custom projects considered gross savings?
A33: Kyle Ohearn | C33: 2.1.2 Performance Based Incentive The Performance Based Participant Incentive amount is $40 per MWh of delivered electricity savings to a maximum incentive of $150,000 (CAD) per 12-month period. The minimum electricity savings (“Annual Savings Target”) required to be eligible for the Performance Based Incentive is 1000 MWh annually. The achievement of the Annual Savings Target is measured based on gross verified savings as verified by the Technical Reviewer and based on projects placed into service in the contract year, and of which at least 10% of the Annual Savings Target must be attributable to new projects not receiving any incentives from the IESO or the LDC or the Province of Ontario or the Government of Canada. Where a Participant fails to achieve their Annual Savings Target in any given year, the LDC shall have full discretion not to extend the Participant Agreement for a subsequent year, terminate a multi-year contract, or to revise the Annual Savings Target specified in the Participant Agreement.
A34: Kyle Ohearn | C34: Here is what I am using. Same as the Provincial PA with a small 60 day requirement added to 5 (C ). I would have thought that CLEAResults Annual Review Report would be used to verify the savings and LDCs would spot check in the field. I do agree that we need to firm up this requirement and process for both CR and LDCs.
A35: CLEAResult | C35: 1) Clarify the meaning of Verified Annual Electricity Savings (currently in the PAs… “the electricity savings verified as in service in the agreement term and persisting until December 31, 2020 by the Technical Reviewer”) a. PSU capital projects  we recommend verified to mean savings results from the Q1 M&V Report b. Retrofit  Post-project approval savings value c. Non-incented  working on a review criteria document with IESO’s evaluation group. Do you (LDC EM working group) want to be actively involved or just kept in the loop? 2) CLEAResult’s role in verifying Retrofit savings
A36: CLEAResult | C36: a. Currently we (CLEAResult) have no looking glass into iCon to reconcile Retrofit savings EMs claim vs what is actually approved in post-project
A37: Brian Baxter (HONE - Brampton) | D37: Energy tracking & monitoring – provide a database and an energy tracking and monitoring system for each facility /process that captures current monthly energy consumption and an electrical load inventory of major equipment. The Energy Manager will develop and deliver training to the Participant’s staff on the energy tracking and monitoring system. Does this requirement preclude the participant from participating in the M&T program?
A38: Bill Whiting (Horizon) | D38: Regarding the Rules for the Energy Manager program, there was a proposal by IESO a few months ago to not allow projects that received gas utility incentives to be counted to a Non-Incented 10% savings target Can you clarify back to me, was that amendment accepted in the end or not, and thus, what is the current rule in this regard on eligibility of non-incented projects with gas incentives only?
A39: Kyle Ohearn | E39: My vendor management strategy is to strive for an approximate 50-50 split between the annual budgets assigned for OA and assigned for EM training & project work. If OA requests are too much to bear for our annual budget then we will reserve the right to decline OA’s as a defensive strategy to ensure we have lots of training and projects on the go. BTW, should funded EM’s use the OA service? CLEAResult have a convincing argument that OA’s identified project savings for funded EM’s have the highest success rate for implementation. Personally, I believe OA is part of their duties as per the Primary assessment clause in Appendix 1 section 2
A40: Kyle Ohearn | E40: Could you help me understand what you mean by Application Review? What application are you referring to? I’m going to ask Geeth about the highlighted tasks in the table below. If not covered under the Technical Review contract then I’ll add to the RFP for EM Support Services. EM Task Technical Review EM Support Services · Application Review on LDC request ? · Quarterly Report Review and Review Report ü · EMP review annually and Review Report ü · Hub support ü · Training support ü · Program trend data ? · Program evaluation data ? · Helpdesk ü

Sheet Definitions
A3: Version 1.1
A4: Project Status
A5: Inactive: | B5: Project has been canceled or abandoned.
A6: Investigation Stage: | B6: Project has been identified but has not yet been started. No binding commitment has not been made (i.e. Purchase Order not issued).
A8: Underway: | B8: Project has started and/or binding commitment has been made (ie. Purchase Order/Letter of Intent issued).
A9: Completed: | B9: Project is in service. The Project has been installed, is operational and delivering electricity savings. Only savings associated with completed projects will contribute towards the Energy Manager's Annual Savings Target.
A11: Defined Terms/Abbreviations
A12: EM | B12: Energy Manager | D12: For more program specific definitions, please review Section 8 of this document.
A13: CFF | B13: Conservation First Framework | D13: Information on MSC Energy Managers can be found here.
A14: QR | B14: Quarterly Report | D14: Information on IAP Energy Managers can be found here.
A15: EMP | B15: Energy Management Plan | D15: Information on NAICS can be found here.
A16: SOE | B16: Save on Energy
A17: IAP | B17: Industrial Accelerator Program
A18: MSC | B18: Multi-Site Customer
A19: CF | B19: Collaboration Fund
A20: TR | B20: Technical Reviewer
A21: NAICS | B21: North American Industry Classification System
A22: CCHP | B22: Conservation Combined Heat and Power
A23: WER | B23: Waste Energy Recovery
A25: Example of a Quarterly Report
A26: Incentive Type | B26: Incentive Program | C26: Project Title | D26: Project Description | E26: Additional Comments | F26: Measure Term | G26: Application Number | H26: Project Cost | I26: Capital Incentive | J26: Estimated Peak Demand Savings (kW) | K26: Estimated Electricity Savings (MWh) | L26: Estimated Completion Date | M26: Actual Peak Demand Savings (kW) | N26: Actual Electricity Savings (MWh) | O26: Project Payback (Yr) | P26: In Service Date | Q26: Project Status | R26: Measure Type | S26: Technology
A27: Incented | B27: Retrofit - Prescriptive | C27: Cooling System VFD Upgrade | D27: The cooling system operates continuously, 8,760 hours per year, and is comprised of 4 x 100 hp pumps, using on/off control. Investigation identified excess system cooling capacity. The project involves installation of VFDs to provide speed control for the cooling pump motors. The VFD control capability will enable the cooling system to operate more efficiently by balancing the system’s cooling capacity with cooling load to avoid excess cooling capacity. | E27: VFD project began in early 2013 and was put on hold temporarilly. Project resumed near the end of 2013 and was completed by the end of February 2014. | F27: 1 | G27: 987654 | H27: 500000 | I27: 10000 | J27: 50 | K27: 450 | L27: 2014-03-01 | N27: 430 | O27: 2 | P27: 2015-03-01 | Q27: Completed | R27: Upgrade | S27: HVAC
A28: Non-Incented | B28: Non-Incented | C28: ABC Facility AC shutdown | D28: Through site assessments it was discovered that many units serving the office building have been set to run 24/7 non stop. A control system will be implemented to shut down the AC in the off hours and control the operation during the cooling days. | E28: Building A: Has begun installing thermostats to control the AC operation based on outdoor temperature | F28: 2 | J28: 0 | K28: 550 | L28: 2016-03-02 | N28: 550 | P28: 2016-03-02 | Q28: Completed | R28: Conservation | S28: Behavioural
A29: Non-Incented | B29: Non-Incented | C29: Project 12345 | D29: A sample investigation was conducted on the compressed air system and it was discovered that there were significant amount of air leaks in the system. Therefore, comressed air leak audit will be conducted throughout the entire building. Leak repairs will occur simultaneously with the audit. | E29: Building B: Contractors will be hired by the end of the year and will conduct audit. Leaks are scheduled to be repaired during the plant shutdown period. | F29: 2 | H29: 10000 | J29: 60 | K29: 500 | L29: 2016-03-31 | O29: 2 | Q29: Underway | R29: O&M and Behavioural | S29: Pumps
A30: Incented | B30: Process and Systems - SCP | C30: Co generation project at XYZ facility | D30: There exists a sufficient base load thermal demand to support a load displacement cogeneration system between 1 MW to 1.5 MW. Based on the results from a feasibility study, it was determined that the implementation of 1 MW internal Combustion Engine is the most cost effective solution. | E30: Detail engineering study completed and proceeding with the project. | F30: 2 | H30: 2000000 | I30: 1000000 | J30: 570 | K30: 3500 | L30: 2017-07-31 | O30: 3 | Q30: Investigation Stage | R30: Upgrade | S30: Gen-Non NG
A31: Non-Incented | B31: Non-Incented | C31: Lighting Overhaul at XYZ facility | D31: The interior lighting in this building was primarily provided by linear fluorescent fixtures (offices, hallways, etc.) as well as incandescent and halogen. The lamps are being replaced with LED. | E31: Decided not to pursue this project due to very low return on investment. | F31: 2 | Q31: Inactive | R31: Upgrade | S31: Lighting
A32: Incented | B32: Retrofit - Custom | C32: Electric Motor Consumption Reduction at XYZ facility | D32: The facility houses over 100 motors, ranging from 1 HP to 450 HP in capacity with a cumulative capacity exceeding 3,000 HP. DES applied to investigate the feasibility of the installation of VFDs and ultra-high efficiency motors. | E32: This pipeline project went through PSUI detailed engineering study and is expected to proceed to Project phase | F32: 3 | H32: 170000 | I32: 40000 | J32: 320 | K32: 280 | L32: 2017-03-31 | Q32: Investigation Stage | R32: Optimization | S32: Motors (other)

Sheet General Input
A3: This tab is designed to collect information that is used throughout the workbook to avoid data entry repetition.
A4: All information is treated as confidential.
A11: GENERAL INFORMATION | G11: DELIVERABLE MILESTONES
A12: Energy Manager Information | G12: Term: | I12: =CEILING(CEILING((TODAY()-'General Input'!$C$19)/365*12/3,1)*3/12,1) -> 1
A13: Name: | C13: John Smith | G13: Quarterly Report:
A14: Phone Number: | C14: 416-658-8712 | G14: Q1 | I14: =DATE(YEAR('General Input'!$C$19)+$I$12-1,MONTH($C$19)+3,DAY('General Input'!$C$19)) -> 2016-04-01
A15: Email Address: | C15: john.smith@company.com | G15: Q2 | I15: =DATE(YEAR('General Input'!$C$19)+$I$12-1,MONTH($C$19)+6,DAY('General Input'!$C$19)) -> 2016-07-01
A16: Program Type: | C16: SOE | G16: Q3 | I16: =DATE(YEAR('General Input'!$C$19)+$I$12-1,MONTH($C$19)+9,DAY('General Input'!$C$19)) -> 2016-10-01
A17: Contract Type: | C17: Performance Based | G17: Q4 | I17: =DATE(YEAR('General Input'!$C$19)+$I$12,MONTH($C$19),DAY('General Input'!$C$19)) -> 2017-01-01
A18: Contract Length (years): | G18: EMP Due Date: | I18: =IF($I$12=1,'General Input'!$C$19+6/12*365,'General Input'!$C$19+($I$12+1)*365) -> 2016-07-01T12:00:00
A19: Contract Start Date: | C19: 2016-01-01
A20: Employment Start Date: | C20: 2016-01-01
A22: Lead Utility Contact Information | G22: Tips to get you started
A23: Utility Name: | G23: 1) Click on Table Headers to open tool tips on how to complete each section.
A24: Utility Representative Name: | C24: Joanna Smith | G24: 2) EM Hub - contact your Utility or Technical Reviewer to get access
A25: Utility Representative Email: | C25: Joanna.Smith@utility.com | G25: 3) If you have completed the EMP, you can press the 'Export Reports' button to export in a PDF format.
A26: Utility Rep. Phone Number:
A28: Host Organization/Facility Information | G28: General Input'!A1 | I28: General Input'!I29
A29: Name: | C29: XYZ Industries Inc.
A30: Address:
A31: Postal Code:
A32: City:
A33: Contact Name:
A34: Phone Number:
A35: Email:
A36: Sector:
A38: For Energy Managers with multiple Organizations and/or Facilties
A39: Facility/Facilities Information
A40: Organization | B40: Facility Name | C40: Facility Address | D40: Postal Code | E40: City | F40: Utility
A41: Organization 1 | B41: Facility 1 | C41: 123 Avenue | D41: 123456
A42: Organization 1 | B42: Facility 2 | C42: 456 Street | D42: 789123

Sheet Checklist
A1: Definitions | B1: General Input | C1: Checklist | D1: EMP | E1: QR | F1: Utility Data | G1: EM Dashboard | H1: Executive Summary
A3: Energy Manager Checklist | G3: Tips
G4: 1) You are required to complete the CEM course by the end of your first term, unless you are already a CEM.
B5: I have completed the Certified Energy Manager (CEM) course in my first term
B6: ="Your first term end date is: "&TEXT(DATE(YEAR('General Input'!$C$19)+1,MONTH('General Input'!$C$19),DAY('General Input'!$C$19)),"mm/dd/yyyy") -> Your first term end date is: 01/01/2017 | G6: CIET CEM Course Information
G7: IESO's CEM Course Funding Info
B8: I am a CEM or Energy Manager in Training (EMIT)
G9: 2) Continuing Training
B10: I have attended the following Continuing Training activities this term | G10: - Attend your EM Regional Meeetings
G11: - Consider courses required to retain your accreditations (e.g. CEM)
B12: Training | C12: Provided By | D12: Completed Date | G12: - Consider training offered by IESO and/or your utility
G13: - Don’t forget about sales skills training!
G14: IESO Training Incentives Information

Sheet Host Organization Goals (hidden)
A3: Host Organization Details & Goals
I4: Tips
A5: Provide your Organization's/Facility's Annual Electricity Consumption & Savings Targets | I5: 1) Obtain your Facility/Facilities Electricity Consumption Data
B7: Annual Electricity Consumption | C7: Annual Electricity Billing (all-in) | D7: Billing Peak Demand (kW) | E7: Annual Savings Target (%) | F7: Annual Electricity Savings Target (MWh) | G7: Annual Utility Bill Savings Target ($) | I7: Host Organization Goals'!I7
A8: =A9-1 -> 2014 | B8: 2000 | C8: 220000 | D8: 100 | I8: Use the Utility Data Tab to store and analyze your interval electricity consumption data
A9: =A10-1 -> 2015 | B9: 7000 | C9: 770000 | D9: 250
A10: =YEAR('General Input'!$C$19) -> 2016 | E10: 0.05 | F10: 350 | G10: =IFERROR(F10*$K$15,"") -> 38500 | I10: Determine the metering & supply points that capture electrical use at your facility/facilities. Obtain interval consumption data from your utility and import it into the Utility Data tab.
A11: =A10+1 -> 2017 | G11: =IFERROR(F11*$K$15,"") -> 0
A12: =A11+1 -> 2018 | G12: 0 | I12: Plot and analyze your electricity consumption data.
A13: =A12+1 -> 2019 | G13: 0 | I13: If interval data is not available, obtain monthly consumption data from your utility bills.
A14: =A13+1 -> 2020 | G14: 0
I15: Your average electricity cost per MWh is: | K15: =IFERROR(VLOOKUP(YEAR(TODAY())-1,$A$8:$C$14,3)/VLOOKUP(YEAR(TODAY())-1,$A$8:$C$14,2),"") -> 110
A16: For multiple facilities, provide the savings target for each facility (Optional)
B17: Target Savings (MWh)
A18: Facility Name | B18: 2016 | C18: 2017 | D18: 2018 | E18: 2019 | F18: 2020 | I18: This average electricity cost is used to calculate Annual Savings in dollars per project in your Quarterly Report.
A19: Facility 1 | B19: 2000 | C19: 2000 | D19: 2000 | E19: 2000 | F19: 2000
A20: Facility 1
A21: Facility 1 | I21: Click on the table header to read about how to add/remove rows.

Sheet Budget (hidden)
A3: Organization Budget
I4: Tips
A5: Determine your Organization's Annual CAPEX and Operating & Maintenance Budgets | I5: 2) Energy Efficiency Budgets
I6: Discussing with management the potential for an annual budget for energy efficiency projects. Leverage your Energy Policy, if one exists.
B7: Annual CAPEX Budget ($) | C7: Annual O&M Budget ($) | D7: Other Budget ($)
A8: =A9-1 -> 2014 | I8: If you are in a Performance Based Contract, consider discussing with management the potential for investing generated revenue from your annual over-performance into future terms' efficiency projects.
A9: =A10-1 -> 2015
A10: =YEAR('General Input'!$C$19) -> 2016
A11: =A10+1 -> 2017
A12: =A11+1 -> 2018 | I12: If your organization operates commercial properties, consider lookng into Capital Reserve accounts.
A13: =A12+1 -> 2019
A14: =A13+1 -> 2020
I15: 3) Consider your budget cycle in project planning
A16: Determine your Organization's Project Budget Cycle | I16: Ensure that your projects are proposed in advance or early in the budget cycle.
A18: Start Budget Planning Date: | I18: Do not leave money on the table by not being aware of left-over budget.
A19: Submit Budget Date:
A20: Budget Approval Date:
A21: Budget Cycle End Date:
A22: Budget Reconciliation Due Date:

Sheet Goals (hidden)
A3: Energy Manager Goals & Results
I4: Tips
A5: Provide your Annual Savings Target | I5: 4) Know your organization's hurdle rates and financial metrics used to evaluate Energy Efficiency Projects
A7: EM Term | C7: 1 | D7: 2 | E7: 3 | F7: 4 | G7: 5 | I7: If available, provide the information in the table below.
A8: Term End Date | C8: =DATE(YEAR('General Input'!$C$19)+C$7,MONTH('General Input'!$C$19),DAY('General Input'!$C$19)-1) -> 2016-12-31 | D8: =DATE(YEAR('General Input'!$C$19)+D$7,MONTH('General Input'!$C$19),DAY('General Input'!$C$19)-1) -> 2017-12-31 | E8: =DATE(YEAR('General Input'!$C$19)+E$7,MONTH('General Input'!$C$19),DAY('General Input'!$C$19)-1) -> 2018-12-31 | F8: =DATE(YEAR('General Input'!$C$19)+F$7,MONTH('General Input'!$C$19),DAY('General Input'!$C$19)-1) -> 2019-12-31 | G8: =DATE(YEAR('General Input'!$C$19)+G$7,MONTH('General Input'!$C$19),DAY('General Input'!$C$19)-1) -> 2020-12-31 | I8: Cost of Capital/Hurdle Rate | K8: 0.12
A9: Annual Savings Target | C9: 2000 | D9: 2000 | E9: 2000 | F9: 2000 | G9: 2000 | I9: IRR | K9: =ExecSummaryCalculation!$G$44 -> N/A
A10: Non-Incented Target | C10: =C9*0.1 -> 200 | D10: =D9*0.1 -> 200 | E10: =E9*0.1 -> 200 | F10: =F9*0.1 -> 200 | G10: =G9*0.1 -> 200 | I10: MIRR | K10: =ExecSummaryCalculation!$G$43 -> N/A
A11: Organization Target | C11: =VLOOKUP(YEAR(C$8),'Host Organization Goals'!$A$8:$F$14,6,FALSE) -> 350 | D11: =VLOOKUP(YEAR(D$8),'Host Organization Goals'!$A$8:$F$14,6,FALSE) -> 0 | E11: =VLOOKUP(YEAR(E$8),'Host Organization Goals'!$A$8:$F$14,6,FALSE) -> 0 | F11: =VLOOKUP(YEAR(F$8),'Host Organization Goals'!$A$8:$F$14,6,FALSE) -> 0 | G11: =VLOOKUP(YEAR(G$8),'Host Organization Goals'!$A$8:$F$14,6,FALSE) -> 0 | I11: Simple Payback | K11: =ExecSummaryCalculation!I40 -> 
A12: EM vs. Organization Target | C12: =IFERROR(C9/C11,"") -> 5.714285714 | D12: =IFERROR(D9/D11,"") ->  | E12: =IFERROR(E9/E11,"") ->  | F12: =IFERROR(F9/F11,"") ->  | G12: =IFERROR(G9/G11,"") ->  | I12: Adjusted Payback | K12: =ExecSummaryCalculation!I41 -> 
A13: Gross Verified Savings achieved | C13: =SUMIFS(QRTable[Actual Electricity Savings (MWh)],QRTable[Project Status],"Completed",QRTable[Measure Term],C$7) -> 0 | D13: =SUMIFS(QRTable[Actual Electricity Savings (MWh)],QRTable[Project Status],"Completed",QRTable[Measure Term],D$7) -> 0 | E13: =SUMIFS(QRTable[Actual Electricity Savings (MWh)],QRTable[Project Status],"Completed",QRTable[Measure Term],E$7) -> 0 | F13: =SUMIFS(QRTable[Actual Electricity Savings (MWh)],QRTable[Project Status],"Completed",QRTable[Measure Term],F$7) -> 0 | G13: =SUMIFS(QRTable[Actual Electricity Savings (MWh)],QRTable[Project Status],"Completed",QRTable[Measure Term],G$7) -> 0 | I13: Return on Investment (%) | K13: =ExecSummaryCalculation!$G$41 -> 
A14: % of Annual Savings Target Achieved | C14: =IFERROR(C13/C9,"") -> 0 | D14: =IFERROR(D13/D9,"") -> 0 | E14: =IFERROR(E13/E9,"") -> 0 | F14: =IFERROR(F13/F9,"") -> 0 | G14: =IFERROR(G13/G9,"") -> 0 | I14: Net Present Value (NPV)
I15: NPV Project Term (years) | K15: 10
A16: Cumulative Target | C16: =C9 -> 2000 | D16: =C16+D9 -> 4000 | E16: =D16+E9 -> 6000 | F16: =E16+F9 -> 8000 | G16: =F16+G9 -> 10000 | I16: NPV Inflation % | K16: 0.05
A17: Cumulative Savings (MWh) | C17: =SUMIFS(QRTable[Actual Electricity Savings (MWh)],QRTable[Project Status],"Completed",QRTable[Measure Term],"<="&C$7) -> 0 | D17: =SUMIFS(QRTable[Actual Electricity Savings (MWh)],QRTable[Project Status],"Completed",QRTable[Measure Term],"<="&D$7) -> 0 | E17: =SUMIFS(QRTable[Actual Electricity Savings (MWh)],QRTable[Project Status],"Completed",QRTable[Measure Term],"<="&E$7) -> 0 | F17: =SUMIFS(QRTable[Actual Electricity Savings (MWh)],QRTable[Project Status],"Completed",QRTable[Measure Term],"<="&F$7) -> 0 | G17: =SUMIFS(QRTable[Actual Electricity Savings (MWh)],QRTable[Project Status],"Completed",QRTable[Measure Term],"<="&G$7) -> 0 | I17: NPV Interest Rate | K17: 0.05
A18: Cumulative Savings ($) | C18: =C17*'Host Organization Goals'!$K$15 -> 0 | D18: =D17*'Host Organization Goals'!$K$15 -> 0 | E18: =E17*'Host Organization Goals'!$K$15 -> 0 | F18: =F17*'Host Organization Goals'!$K$15 -> 0 | G18: =G17*'Host Organization Goals'!$K$15 -> 0 | I18: MIRR Finance Rate (%) | K18: 0.1
I19: MIRR Interest Rate (%) | K19: 0.1
I21: The above financial metrics will be used to populate the Executive Summary report, which can be used to present to the management/executive sponsors.

Sheet Decision Makers (hidden)
A3: Decision Makers
I4: Tips
A5: Determine the Project Decision-makers at your Organization?
A6: Capital Projects
A7: Facility Name | B7: Name | C7: Title | D7: Role | E7: Email | F7: Phone Number
A8: Facility 1
A9: Facility 1
A10: Facility 2
A11: Facility 3
A16: O&M Projects
A17: Facility Name | B17: Name | C17: Title | D17: Role | E17: Email | F17: Phone Number
A18: Facility 1
A19: Facility 1
A20: Facility 2
A21: Facility 3

Sheet System (hidden)
A3: Identify Major Energy Users/Systems at your Facility/Facilities | Q3: Tips
Q4: 6) Identifying Large Energy Users
Q5: Identify largest energy use systems/equipment by consulting your equipment/motor list or obtaining available sub-metered supporting data.
Q8: Using the inventory list of equipment and their operating schedules, you can estimate their total energy use.
Q10: If these large users are not sub-metered, consider installing power meters to track consumption of each.
Q12: Contact your utility provider to find out about the Monitoring and Targeting Program
A13: Electricity Consumption | E13: Gas Consumption | I13: Water Consumption | M13: Other
A14: System | B14: Annual Consumption | C14: % of Consumption | E14: System | F14: Annual Consumption | G14: % Consumption | I14: System | J14: Annual Consumption | K14: % Consumption | M14: System | N14: Annual Consumption | O14: % Consumption | Q14: Consider applying for M&T through Retrofit Custom incentive program.
A15: Compressed Air | B15: 25 | C15: =LargestSystemElec322[[#This Row],[Annual Consumption]]/SUM(LargestSystemElec322[Annual Consumption]) -> 0.25 | E15: Furnace | F15: 30 | G15: =LargestSystemGas[[#This Row],[Annual Consumption]]/SUM(LargestSystemGas[Annual Consumption]) -> 0.3 | I15: Process | J15: 70 | K15: =LargestSystemWater[[#This Row],[Annual Consumption]]/SUM(LargestSystemWater[Annual Consumption]) -> 0.7 | M15: Furnace | N15: 30 | O15: =LargestSystemOther[[#This Row],[Annual Consumption]]/SUM(LargestSystemOther[Annual Consumption]) -> 0.3
A16: HVAC | B16: 20 | C16: =LargestSystemElec322[[#This Row],[Annual Consumption]]/SUM(LargestSystemElec322[Annual Consumption]) -> 0.2 | E16: Boilers | F16: 30 | G16: =LargestSystemGas[[#This Row],[Annual Consumption]]/SUM(LargestSystemGas[Annual Consumption]) -> 0.3 | I16: Process Cooling | J16: 20 | K16: =LargestSystemWater[[#This Row],[Annual Consumption]]/SUM(LargestSystemWater[Annual Consumption]) -> 0.2 | M16: Boilers | N16: 30 | O16: =LargestSystemOther[[#This Row],[Annual Consumption]]/SUM(LargestSystemOther[Annual Consumption]) -> 0.3 | Q16: Plot available data and assess if there are any notable patterns with your largest users' energy consumption profile.
A17: Lighting | B17: 10 | C17: =LargestSystemElec322[[#This Row],[Annual Consumption]]/SUM(LargestSystemElec322[Annual Consumption]) -> 0.1 | E17: CHP | F17: 40 | G17: =LargestSystemGas[[#This Row],[Annual Consumption]]/SUM(LargestSystemGas[Annual Consumption]) -> 0.4 | I17: Miscellaneous | J17: 10 | K17: =LargestSystemWater[[#This Row],[Annual Consumption]]/SUM(LargestSystemWater[Annual Consumption]) -> 0.1 | M17: CHP | N17: 40 | O17: =LargestSystemOther[[#This Row],[Annual Consumption]]/SUM(LargestSystemOther[Annual Consumption]) -> 0.4
A18: Process Cooling | B18: 10 | C18: =LargestSystemElec322[[#This Row],[Annual Consumption]]/SUM(LargestSystemElec322[Annual Consumption]) -> 0.1
A19: Pumping | B19: 10 | C19: =LargestSystemElec322[[#This Row],[Annual Consumption]]/SUM(LargestSystemElec322[Annual Consumption]) -> 0.1
A20: Process | B20: 25 | C20: =LargestSystemElec322[[#This Row],[Annual Consumption]]/SUM(LargestSystemElec322[Annual Consumption]) -> 0.25

Sheet Policies (hidden)
A3: Energy Policy
D4: Tips
A5: Identify your Organisation's Energy Policy | D5: 8) Creating an Energy Policy
D6: If an Energy Policy does not exist at your organization, consider creating an Energy Policy with your Annual Savings Target as the goal.
A7: Policy | B7: Date
A8: XYZ Company Inc. is commited to reducting electricity use at the facility by 25% by 2020.
A9: XYZ Company Inc. is commited… | D9: Obtain management support in developing an Energy Policy so you can leverage it in future energy efficiency project proposals.
D12: Consider proposing creation of procurement policies to management. If adopted, it may hasten subsequent procurement procedures for the particular equipment.
A15: Identify your Organization's Energy Efficiency Equipment Procurement Policy | D15: When building your business case, consider a life cycle analysis and additional benefits, not just simple pay back.
A17: Proposed Procurement Policy | B17: System/Equipment | D17: Here is a sample of an energy policy statement
A18: T8 bulbs less than X Watts are replaced with Y Watt LED lamps manufactured by Z. | B18: Lighting

Sheet EM Team (hidden)
A3: Energy Management Team
G4: Tips
A5: Identify or Create your Energy Management Team
A6: Position | B6: Name | C6: Role | D6: Telephone Number | E6: Email | G6: 9) Create and Energy Team with an executive sponsor
A7: Executive Sponsor | G7: Identify the individuals suitable for your Energy Team.
A8: Team Member #1 | G8: Create a meeting agenda and schedule regular team meetings.
A9: Team Member #2
A10: Team Member #3 | G10: Read this article on the EM Hub on the value of the team
A11: Team Member #4 | G11: Read this article on the EM Hub on how to engage an executive sponsor
A12: Team Member #5

Sheet EMP
A1: Definitions | B1: General Input | C1: Checklist | D1: EMP | E1: QR | F1: Utility Data | G1: Dashboard | H1: Executive Summary
A3: Energy Management Plan (EMP)
A9: Host Organization: | B9: ='General Input'!$C$29 -> XYZ Industries Inc. | F9: EM Name: | G9: ='General Input'!$C$13 -> John Smith
A10: Energy Management Plan Due Date: | C10: ='General Input'!$I$18 -> 2016-07-01T12:00:00
B22: Insert Company Logo
A27: Energy Management Plan
B58: Date: | C58: 2016-07-01
B59: Prepared by: | C59: ='General Input'!$C$13 -> John Smith
C60: Name 2
C61: Name 3
C62: Department
C65: ='General Input'!$C$29 -> XYZ Industries Inc.

Sheet QR
A2: ='General Input'!$C$29 -> XYZ Industries Inc. | E2: ='General Input'!$C$13 -> John Smith
A3: LDC Reviewed | B3: Chart | C3: Energy Manager Name | D3: Type | E3: NAICS | F3: Sector | G3: Project Participant | H3: Facility Name | I3: Utility | J3: Measure Address | K3: City | L3: Measure Postal Code | M3: Incentive Type | N3: Incentive Program | O3: Project Title | P3: Project Description | Q3: Additional Comments | R3: Measure Term | S3: Application Number | T3: Project Cost | U3: Capital Incentive | V3: Estimated Peak Demand Savings (kW) | W3: Estimated Electricity Savings (MWh) | X3: Estimated Completion Date | Y3: Actual Peak Demand Savings (kW) | Z3: Actual Electricity Savings (MWh) | AA3: Project Payback (Yr) | AB3: In Service Date | AC3: Project Status | AD3: Measure Type | AE3: Technology | AF3: Technical Reviewer Comments | AG3: Energy Manager Comments | AH3: Framework | AI3: Natural Gas Savings | AJ3: Water Savings | AK3: Other Benefits ($) | AL3: Year of Completion | AM3: Annual $ Savings
AL4: =IF(QRTable[[#This Row],[In Service Date]]="","",YEAR(QRTable[[#This Row],[In Service Date]])) ->  | AM4: =QRTable[[#This Row],[Estimated Electricity Savings (MWh)]]*'Host Organization Goals'!$K$15 -> 0
AL5: =IF(QRTable[[#This Row],[In Service Date]]="","",YEAR(QRTable[[#This Row],[In Service Date]])) ->  | AM5: =QRTable[[#This Row],[Estimated Electricity Savings (MWh)]]*'Host Organization Goals'!$K$15 -> 0
AL6: =IF(QRTable[[#This Row],[In Service Date]]="","",YEAR(QRTable[[#This Row],[In Service Date]])) ->  | AM6: =QRTable[[#This Row],[Estimated Electricity Savings (MWh)]]*'Host Organization Goals'!$K$15 -> 0
AL7: =IF(QRTable[[#This Row],[In Service Date]]="","",YEAR(QRTable[[#This Row],[In Service Date]])) ->  | AM7: =QRTable[[#This Row],[Estimated Electricity Savings (MWh)]]*'Host Organization Goals'!$K$15 -> 0
AL8: =IF(QRTable[[#This Row],[In Service Date]]="","",YEAR(QRTable[[#This Row],[In Service Date]])) ->  | AM8: =QRTable[[#This Row],[Estimated Electricity Savings (MWh)]]*'Host Organization Goals'!$K$15 -> 0
AL9: =IF(QRTable[[#This Row],[In Service Date]]="","",YEAR(QRTable[[#This Row],[In Service Date]])) ->  | AM9: =QRTable[[#This Row],[Estimated Electricity Savings (MWh)]]*'Host Organization Goals'!$K$15 -> 0

Sheet Utility Data
A20: ="Electricity Consumption ("&B21&")" -> Electricity Consumption (MWh) | F20: ="Gas Consumption ("&G21&")" -> Gas Consumption (m3) | J20: ="Water Consumption ("&K21&")" -> Water Consumption (Litre) | M20: ="Other Consumption ("&N21&")" -> Other Consumption (Other)
A21: Date | B21: MWh | C21: Billing Demand (kW) | D21: Billing Amount ($) | F21: Date | G21: m3 | H21: Billing Amount ($) | J21: Date | K21: Litre | M21: Date | N21: Other
A22: 2014-11-01 | B22: 1000 | C22: 100 | D22: 110000 | F22: 2014-11-01 | G22: 500 | J22: 2016-01-01 | K22: 1000 | M22: 2016-01-01 | N22: 1000
A23: 2014-12-01 | B23: 1000 | C23: 100 | D23: 110000 | F23: 2014-12-01 | G23: 500 | J23: 2016-01-02 | K23: 1000 | M23: 2016-01-02 | N23: 1000
A24: 2015-01-01 | B24: 2000 | C24: 200 | D24: 220000 | F24: 2015-01-01 | G24: 500 | J24: 2016-01-03 | K24: 1000 | M24: 2016-01-03 | N24: 1000
A25: 2015-02-01 | B25: 2500 | C25: 250 | D25: 275000 | F25: 2015-02-01 | G25: 500 | J25: 2016-01-04 | K25: 1000 | M25: 2016-01-04 | N25: 1000
A26: 2015-03-01 | B26: 2500 | C26: 250 | D26: 275000 | F26: 2015-03-01 | G26: 500 | J26: 2016-01-05 | K26: 1000 | M26: 2016-01-05 | N26: 1000

Sheet Dashboard
I15: Incentive Program | J15: (All)
C16: Show All | I16: Project Status | J16: (All)
C17: =IF($C$16="Show All","*",$C$16) -> * | I17: Chart | J17: Y | M17: Incentive Type | N17: (All)
D18: Total Electricity Savings (MWh)
C19: Term | D19: Completed | E19: Underway | F19: Investigation Stage | G19: Target | I19: Technology | J19: MWh Savings | M19: Sum of Estimated Electricity Savings (MWh) | N19: Incentive Program
C20: 1 | D20: =SUMIFS(QRTable[Actual Electricity Savings (MWh)],QRTable[Measure Term],Table16[Term],QRTable[Project Status],"Completed",QRTable[Incentive Type],$C$17,QRTable[Incentive Program],"<>*ES",QRTable[Incentive Program],"<>Audit*",QRTable[Incentive Program],"<>FIT*") -> 0 | E20: =SUMIFS(QRTable[Estimated Electricity Savings (MWh)],QRTable[Measure Term],Table16[Term],QRTable[Project Status],"Underway",QRTable[Incentive Type],$C$17,QRTable[Incentive Program],"<>*ES",QRTable[Incentive Program],"<>Audit*",QRTable[Incentive Program],"<>FIT*") -> 0 | F20: =SUMIFS(QRTable[Estimated Electricity Savings (MWh)],QRTable[Measure Term],Table16[Term],QRTable[Project Status],"Investigation Stage",QRTable[Incentive Type],$C$17,QRTable[Incentive Program],"<>*ES",QRTable[Incentive Program],"<>Audit*",QRTable[Incentive Program],"<>FIT*") -> 0 | G20: =IF($C$16="Non-Incented",HLOOKUP(Table16[[#This Row],[Term]],Goals!$C$7:$G$10,4,FALSE),HLOOKUP(Table16[[#This Row],[Term]],Goals!$C$7:$G$10,3,FALSE)) -> 2000 | I20: Behavioural | J20: 550 | M20: Measure Term | N20: Non-Incented | O20: Process and Systems - SCP | P20: Retrofit - Custom | Q20: Retrofit - Prescriptive
C21: 2 | D21: =SUMIFS(QRTable[Actual Electricity Savings (MWh)],QRTable[Measure Term],Table16[Term],QRTable[Project Status],"Completed",QRTable[Incentive Type],$C$17,QRTable[Incentive Program],"<>*ES",QRTable[Incentive Program],"<>Audit*",QRTable[Incentive Program],"<>FIT*") -> 0 | E21: =SUMIFS(QRTable[Estimated Electricity Savings (MWh)],QRTable[Measure Term],Table16[Term],QRTable[Project Status],"Underway",QRTable[Incentive Type],$C$17,QRTable[Incentive Program],"<>*ES",QRTable[Incentive Program],"<>Audit*",QRTable[Incentive Program],"<>FIT*") -> 0 | F21: =SUMIFS(QRTable[Estimated Electricity Savings (MWh)],QRTable[Measure Term],Table16[Term],QRTable[Project Status],"Investigation Stage",QRTable[Incentive Type],$C$17,QRTable[Incentive Program],"<>*ES",QRTable[Incentive Program],"<>Audit*",QRTable[Incentive Program],"<>FIT*") -> 0 | G21: =IF($C$16="Non-Incented",HLOOKUP(Table16[[#This Row],[Term]],Goals!$C$7:$G$10,4,FALSE),HLOOKUP(Table16[[#This Row],[Term]],Goals!$C$7:$G$10,3,FALSE)) -> 2000 | I21: Gen-Non NG | J21: 3500 | M21: 1 | Q21: 450
C22: 3 | D22: =SUMIFS(QRTable[Actual Electricity Savings (MWh)],QRTable[Measure Term],Table16[Term],QRTable[Project Status],"Completed",QRTable[Incentive Type],$C$17,QRTable[Incentive Program],"<>*ES",QRTable[Incentive Program],"<>Audit*",QRTable[Incentive Program],"<>FIT*") -> 0 | E22: =SUMIFS(QRTable[Estimated Electricity Savings (MWh)],QRTable[Measure Term],Table16[Term],QRTable[Project Status],"Underway",QRTable[Incentive Type],$C$17,QRTable[Incentive Program],"<>*ES",QRTable[Incentive Program],"<>Audit*",QRTable[Incentive Program],"<>FIT*") -> 0 | F22: =SUMIFS(QRTable[Estimated Electricity Savings (MWh)],QRTable[Measure Term],Table16[Term],QRTable[Project Status],"Investigation Stage",QRTable[Incentive Type],$C$17,QRTable[Incentive Program],"<>*ES",QRTable[Incentive Program],"<>Audit*",QRTable[Incentive Program],"<>FIT*") -> 0 | G22: =IF($C$16="Non-Incented",HLOOKUP(Table16[[#This Row],[Term]],Goals!$C$7:$G$10,4,FALSE),HLOOKUP(Table16[[#This Row],[Term]],Goals!$C$7:$G$10,3,FALSE)) -> 2000 | I22: HVAC | J22: 450 | M22: 2 | N22: 1050 | O22: 3500
I23: Lighting | M23: 3 | P23: 280
I24: Motors (other) | J24: 280 | M24: Grand Total | N24: 1050 | O24: 3500 | P24: 280 | Q24: 450
I25: Pumps | J25: 500
I26: Grand Total | J26: 5280

Sheet Executive Summary
M1: Display Charts from | O1: Input Year
A3: ENERGY MANAGER EXECUTIVE SUMMARY | M3: Input Year | O3: 2015
A4: ="Organization: "&'General Input'!$C$29 -> Organization: XYZ Industries Inc. | G4: ="Energy Manager: "&'General Input'!$C$13 -> Energy Manager: John Smith | M4: Year | O4: =IF($O$1="EM Start Year",YEAR('General Input'!$C$19),$O$3) -> 2015
A6: Energy Management Highlights | M6: Display Equivalent Unit/Production | O6: Yes
A7: Provide 3 energy management talking points for senior management that highlight successes and would make for good messages to share with employees to increase awareness. Make sure your highlights are current, and include results with metrics where possible. (Please overwrite this message) | M7: Production Unit | O7: Units
M8: =IF(O7="Enter Unit","Marginal Profit per …","Marginal Profit per "&O7) -> Marginal Profit per Units | O8: 2500
M10: Cost of Capital/Hurdle Rate | O10: =Goals!$K$8 -> 0.12
M11: Number of Years - Cash Flow | O11: 11
I34: Cost of Capital/Hurdle Rate | K34: =ExecSummaryCalculation!$I$44 -> 0.12
I36: Return on Investment | K36: =ExecSummaryCalculation!$G$41 -> 
I37: NPV - 10 Yrs | K37: =ExecSummaryCalculation!$G$40 -> 0
I39: ="MIRR with Incentive - "&$O$11&" Yr" -> MIRR with Incentive - 11 Yr | K39: =ExecSummaryCalculation!$G$43 -> N/A
I41: ="MIRR w/o Incentive - "&$O$11&" Yr" -> MIRR w/o Incentive - 11 Yr | K41: =ExecSummaryCalculation!$G$42 -> N/A
I43: Break-even year w/o Incentive Is: | K43: =ExecSummaryCalculation!$G$36 -> N/A
I45: Break-even year w/ Incentive Is: | K45: =ExecSummaryCalculation!$G$37 -> N/A
I47: =YEAR(TODAY())&" Facility Consumption" -> 2016 Facility Consumption | K47: =INDEX('Host Organization Goals'!$B$8:$B$14,MATCH(YEAR(TODAY()),'Host Organization Goals'!$A$8:$A$14,0),1) -> 0
A49: Top 5 Completed Projects with Largest Savings
A50: =ExecSummaryCalculation!B48 -> Project Title | H50: =ExecSummaryCalculation!C48 -> MWh Savings | I50: =ExecSummaryCalculation!D48 -> Dollars Saved | J50: =ExecSummaryCalculation!E48 -> Project Cost | K50: =ExecSummaryCalculation!F48 -> Incentive
A51: =ExecSummaryCalculation!B49 ->  | H51: =ExecSummaryCalculation!C49 ->  | I51: =ExecSummaryCalculation!D49 ->  | J51: =ExecSummaryCalculation!E49 ->  | K51: =ExecSummaryCalculation!F49 -> 
A52: =ExecSummaryCalculation!B50 ->  | H52: =ExecSummaryCalculation!C50 ->  | I52: =ExecSummaryCalculation!D50 ->  | J52: =ExecSummaryCalculation!E50 ->  | K52: =ExecSummaryCalculation!F50 -> 
A53: =ExecSummaryCalculation!B51 ->  | H53: =ExecSummaryCalculation!C51 ->  | I53: =ExecSummaryCalculation!D51 ->  | J53: =ExecSummaryCalculation!E51 ->  | K53: =ExecSummaryCalculation!F51 -> 
A54: =ExecSummaryCalculation!B52 ->  | H54: =ExecSummaryCalculation!C52 ->  | I54: =ExecSummaryCalculation!D52 ->  | J54: =ExecSummaryCalculation!E52 ->  | K54: =ExecSummaryCalculation!F52 -> 
A55: =ExecSummaryCalculation!B53 ->  | H55: =ExecSummaryCalculation!C53 ->  | I55: =ExecSummaryCalculation!D53 ->  | J55: =ExecSummaryCalculation!E53 ->  | K55: =ExecSummaryCalculation!F53 -> 
A57: Top 5 Pipeline Projects with Largest Savings
A58: =ExecSummaryCalculation!B56 -> Project Title | H58: =ExecSummaryCalculation!C56 -> MWh Savings | I58: =ExecSummaryCalculation!D56 -> Dollars Saved | J58: =ExecSummaryCalculation!E56 -> Project Cost | K58: =ExecSummaryCalculation!F56 -> Incentive
A59: =ExecSummaryCalculation!B57 ->  | H59: =ExecSummaryCalculation!C57 ->  | I59: =ExecSummaryCalculation!D57 ->  | J59: =ExecSummaryCalculation!E57 ->  | K59: =ExecSummaryCalculation!F57 -> 
A60: =ExecSummaryCalculation!B58 ->  | H60: =ExecSummaryCalculation!C58 ->  | I60: =ExecSummaryCalculation!D58 ->  | J60: =ExecSummaryCalculation!E58 ->  | K60: =ExecSummaryCalculation!F58 -> 
A61: =ExecSummaryCalculation!B59 ->  | H61: =ExecSummaryCalculation!C59 ->  | I61: =ExecSummaryCalculation!D59 ->  | J61: =ExecSummaryCalculation!E59 ->  | K61: =ExecSummaryCalculation!F59 -> 
A62: =ExecSummaryCalculation!B60 ->  | H62: =ExecSummaryCalculation!C60 ->  | I62: =ExecSummaryCalculation!D60 ->  | J62: =ExecSummaryCalculation!E60 ->  | K62: =ExecSummaryCalculation!F60 -> 
A63: =ExecSummaryCalculation!B61 ->  | H63: =ExecSummaryCalculation!C61 ->  | I63: =ExecSummaryCalculation!D61 ->  | J63: =ExecSummaryCalculation!E61 ->  | K63: =ExecSummaryCalculation!F61 -> 
A65: Energy Manager Comments

Sheet Baseline Model (hidden)
A1: Placeholder. Phase 2 Item

Sheet Project Business Case (hidden)
A1: Placeholder. Phase 2 Item

Sheet ExecSummaryCalculation (hidden)
A1: This sheet calculates metrics used to display the charts in the Executive Summary report.
A4: Term Savings vs Target Table (#N/A cells allow charts to dynamically display only the years wanted)
A5: Term | B5: $ Savings | C5: Internal Target | D5: Expected Savings in $ | E5: $ Savings in Investigation | F5: # Units Sold | G5: Year | H5: Index | I5: Dummy Year
A6: =IF(termsavtgttable[[#This Row],[Year]]>YEAR(TODAY()),NA(),termsavtgttable[[#This Row],[Year]]-YEAR('General Input'!$C$19)+1) -> 0 | B6: =IF(ISNUMBER(termsavtgttable[[#This Row],[Term]]),SUMIFS(QRTable[Annual $ Savings],QRTable[Project Status],"Completed",QRTable[Incentive Program],"<>*PES",QRTable[Incentive Program],"<>*DES",QRTable[In Service Date],"<="&termsavtgttable[[#This Row],[Dummy Year]]),NA()) -> 0 | C6: =IF(ISNUMBER(termsavtgttable[[#This Row],[Term]]),SUMIF('Host Organization Goals'!$A$8:$A$14,"<="&termsavtgttable[Year],'Host Organization Goals'!$G$8:$G$14)) -> 0 | D6: =IF(ISNUMBER(termsavtgttable[[#This Row],[Term]]),SUMIFS(QRTable[Annual $ Savings],QRTable[Project Status],"=Underway",QRTable[Incentive Program],"<>*PES",QRTable[Incentive Program],"<>*DES",QRTable[Estimated Completion Date],"<="&termsavtgttable[[#This Row],[Dummy Year]]),NA()) -> 0 | E6: =IF(ISNUMBER(termsavtgttable[[#This Row],[Term]]),SUMIFS(QRTable[Annual $ Savings],QRTable[Project Status],"=Investigation Stage",QRTable[Incentive Program],"<>*PES",QRTable[Incentive Program],"<>*DES",QRTable[Estimated Completion Date],"<="&termsavtgttable[[#This Row],[Dummy Year]]),NA()) -> 0 | F6: =termsavtgttable[[#This Row],[$ Savings]]/'Executive Summary'!$O$8 -> 0 | G6: =IF('Host Organization Goals'!$A$8+termsavtgttable[[#This Row],[Index]]-1<=YEAR(TODAY()),'Executive Summary'!$O$4+termsavtgttable[[#This Row],[Index]]-1,NA()) -> 2015 | H6: 1 | I6: =DATE(termsavtgttable[[#This Row],[Year]],12,31) -> 42369
A7: =IF(termsavtgttable[[#This Row],[Year]]>YEAR(TODAY()),NA(),termsavtgttable[[#This Row],[Year]]-YEAR('General Input'!$C$19)+1) -> 1 | B7: =IF(ISNUMBER(termsavtgttable[[#This Row],[Term]]),SUMIFS(QRTable[Annual $ Savings],QRTable[Project Status],"Completed",QRTable[Incentive Program],"<>*PES",QRTable[Incentive Program],"<>*DES",QRTable[In Service Date],"<="&termsavtgttable[[#This Row],[Dummy Year]]),NA()) -> 0 | C7: =IF(ISNUMBER(termsavtgttable[[#This Row],[Term]]),SUMIF('Host Organization Goals'!$A$8:$A$14,"<="&termsavtgttable[Year],'Host Organization Goals'!$G$8:$G$14)) -> 38500 | D7: =IF(ISNUMBER(termsavtgttable[[#This Row],[Term]]),SUMIFS(QRTable[Annual $ Savings],QRTable[Project Status],"=Underway",QRTable[Incentive Program],"<>*PES",QRTable[Incentive Program],"<>*DES",QRTable[Estimated Completion Date],"<="&termsavtgttable[[#This Row],[Dummy Year]]),NA()) -> 0 | E7: =IF(ISNUMBER(termsavtgttable[[#This Row],[Term]]),SUMIFS(QRTable[Annual $ Savings],QRTable[Project Status],"=Investigation Stage",QRTable[Incentive Program],"<>*PES",QRTable[Incentive Program],"<>*DES",QRTable[Estimated Completion Date],"<="&termsavtgttable[[#This Row],[Dummy Year]]),NA()) -> 0 | F7: =termsavtgttable[[#This Row],[$ Savings]]/'Executive Summary'!$O$8 -> 0 | G7: =IF('Host Organization Goals'!$A$8+termsavtgttable[[#This Row],[Index]]-1<=YEAR(TODAY()),'Executive Summary'!$O$4+termsavtgttable[[#This Row],[Index]]-1,NA()) -> 2016 | H7: 2 | I7: =DATE(termsavtgttable[[#This Row],[Year]],12,31) -> 42735
A8: =IF(termsavtgttable[[#This Row],[Year]]>YEAR(TODAY()),NA(),termsavtgttable[[#This Row],[Year]]-YEAR('General Input'!$C$19)+1) ->  | B8: =IF(ISNUMBER(termsavtgttable[[#This Row],[Term]]),SUMIFS(QRTable[Annual $ Savings],QRTable[Project Status],"Completed",QRTable[Incentive Program],"<>*PES",QRTable[Incentive Program],"<>*DES",QRTable[In Service Date],"<="&termsavtgttable[[#This Row],[Dummy Year]]),NA()) ->  | C8: =IF(ISNUMBER(termsavtgttable[[#This Row],[Term]]),SUMIF('Host Organization Goals'!$A$8:$A$14,"<="&termsavtgttable[Year],'Host Organization Goals'!$G$8:$G$14)) -> FALSE | D8: =IF(ISNUMBER(termsavtgttable[[#This Row],[Term]]),SUMIFS(QRTable[Annual $ Savings],QRTable[Project Status],"=Underway",QRTable[Incentive Program],"<>*PES",QRTable[Incentive Program],"<>*DES",QRTable[Estimated Completion Date],"<="&termsavtgttable[[#This Row],[Dummy Year]]),NA()) ->  | E8: =IF(ISNUMBER(termsavtgttable[[#This Row],[Term]]),SUMIFS(QRTable[Annual $ Savings],QRTable[Project Status],"=Investigation Stage",QRTable[Incentive Program],"<>*PES",QRTable[Incentive Program],"<>*DES",QRTable[Estimated Completion Date],"<="&termsavtgttable[[#This Row],[Dummy Year]]),NA()) ->  | F8: =termsavtgttable[[#This Row],[$ Savings]]/'Executive Summary'!$O$8 ->  | G8: =IF('Host Organization Goals'!$A$8+termsavtgttable[[#This Row],[Index]]-1<=YEAR(TODAY()),'Executive Summary'!$O$4+termsavtgttable[[#This Row],[Index]]-1,NA()) -> 2017 | H8: 3 | I8: =DATE(termsavtgttable[[#This Row],[Year]],12,31) -> 43100
A9: =IF(termsavtgttable[[#This Row],[Year]]>YEAR(TODAY()),NA(),termsavtgttable[[#This Row],[Year]]-YEAR('General Input'!$C$19)+1) ->  | B9: =IF(ISNUMBER(termsavtgttable[[#This Row],[Term]]),SUMIFS(QRTable[Annual $ Savings],QRTable[Project Status],"Completed",QRTable[Incentive Program],"<>*PES",QRTable[Incentive Program],"<>*DES",QRTable[In Service Date],"<="&termsavtgttable[[#This Row],[Dummy Year]]),NA()) ->  | C9: =IF(ISNUMBER(termsavtgttable[[#This Row],[Term]]),SUMIF('Host Organization Goals'!$A$8:$A$14,"<="&termsavtgttable[Year],'Host Organization Goals'!$G$8:$G$14)) -> FALSE | D9: =IF(ISNUMBER(termsavtgttable[[#This Row],[Term]]),SUMIFS(QRTable[Annual $ Savings],QRTable[Project Status],"=Underway",QRTable[Incentive Program],"<>*PES",QRTable[Incentive Program],"<>*DES",QRTable[Estimated Completion Date],"<="&termsavtgttable[[#This Row],[Dummy Year]]),NA()) ->  | E9: =IF(ISNUMBER(termsavtgttable[[#This Row],[Term]]),SUMIFS(QRTable[Annual $ Savings],QRTable[Project Status],"=Investigation Stage",QRTable[Incentive Program],"<>*PES",QRTable[Incentive Program],"<>*DES",QRTable[Estimated Completion Date],"<="&termsavtgttable[[#This Row],[Dummy Year]]),NA()) ->  | F9: =termsavtgttable[[#This Row],[$ Savings]]/'Executive Summary'!$O$8 ->  | G9: =IF('Host Organization Goals'!$A$8+termsavtgttable[[#This Row],[Index]]-1<=YEAR(TODAY()),'Executive Summary'!$O$4+termsavtgttable[[#This Row],[Index]]-1,NA()) ->  | H9: 4 | I9: =DATE(termsavtgttable[[#This Row],[Year]],12,31) -> 
A10: =IF(termsavtgttable[[#This Row],[Year]]>YEAR(TODAY()),NA(),termsavtgttable[[#This Row],[Year]]-YEAR('General Input'!$C$19)+1) ->  | B10: =IF(ISNUMBER(termsavtgttable[[#This Row],[Term]]),SUMIFS(QRTable[Annual $ Savings],QRTable[Project Status],"Completed",QRTable[Incentive Program],"<>*PES",QRTable[Incentive Program],"<>*DES",QRTable[In Service Date],"<="&termsavtgttable[[#This Row],[Dummy Year]]),NA()) ->  | C10: =IF(ISNUMBER(termsavtgttable[[#This Row],[Term]]),SUMIF('Host Organization Goals'!$A$8:$A$14,"<="&termsavtgttable[Year],'Host Organization Goals'!$G$8:$G$14)) -> FALSE | D10: =IF(ISNUMBER(termsavtgttable[[#This Row],[Term]]),SUMIFS(QRTable[Annual $ Savings],QRTable[Project Status],"=Underway",QRTable[Incentive Program],"<>*PES",QRTable[Incentive Program],"<>*DES",QRTable[Estimated Completion Date],"<="&termsavtgttable[[#This Row],[Dummy Year]]),NA()) ->  | E10: =IF(ISNUMBER(termsavtgttable[[#This Row],[Term]]),SUMIFS(QRTable[Annual $ Savings],QRTable[Project Status],"=Investigation Stage",QRTable[Incentive Program],"<>*PES",QRTable[Incentive Program],"<>*DES",QRTable[Estimated Completion Date],"<="&termsavtgttable[[#This Row],[Dummy Year]]),NA()) ->  | F10: =termsavtgttable[[#This Row],[$ Savings]]/'Executive Summary'!$O$8 ->  | G10: =IF('Host Organization Goals'!$A$8+termsavtgttable[[#This Row],[Index]]-1<=YEAR(TODAY()),'Executive Summary'!$O$4+termsavtgttable[[#This Row],[Index]]-1,NA()) ->  | H10: 5 | I10: =DATE(termsavtgttable[[#This Row],[Year]],12,31) -> 
A11: =IF(termsavtgttable[[#This Row],[Year]]>YEAR(TODAY()),NA(),termsavtgttable[[#This Row],[Year]]-YEAR('General Input'!$C$19)+1) ->  | B11: =IF(ISNUMBER(termsavtgttable[[#This Row],[Term]]),SUMIFS(QRTable[Annual $ Savings],QRTable[Project Status],"Completed",QRTable[Incentive Program],"<>*PES",QRTable[Incentive Program],"<>*DES",QRTable[In Service Date],"<="&termsavtgttable[[#This Row],[Dummy Year]]),NA()) ->  | C11: =IF(ISNUMBER(termsavtgttable[[#This Row],[Term]]),SUMIF('Host Organization Goals'!$A$8:$A$14,"<="&termsavtgttable[Year],'Host Organization Goals'!$G$8:$G$14)) -> FALSE | D11: =IF(ISNUMBER(termsavtgttable[[#This Row],[Term]]),SUMIFS(QRTable[Annual $ Savings],QRTable[Project Status],"=Underway",QRTable[Incentive Program],"<>*PES",QRTable[Incentive Program],"<>*DES",QRTable[Estimated Completion Date],"<="&termsavtgttable[[#This Row],[Dummy Year]]),NA()) ->  | E11: =IF(ISNUMBER(termsavtgttable[[#This Row],[Term]]),SUMIFS(QRTable[Annual $ Savings],QRTable[Project Status],"=Investigation Stage",QRTable[Incentive Program],"<>*PES",QRTable[Incentive Program],"<>*DES",QRTable[Estimated Completion Date],"<="&termsavtgttable[[#This Row],[Dummy Year]]),NA()) ->  | F11: =termsavtgttable[[#This Row],[$ Savings]]/'Executive Summary'!$O$8 ->  | G11: =IF('Host Organization Goals'!$A$8+termsavtgttable[[#This Row],[Index]]-1<=YEAR(TODAY()),'Executive Summary'!$O$4+termsavtgttable[[#This Row],[Index]]-1,NA()) ->  | H11: 6 | I11: =DATE(termsavtgttable[[#This Row],[Year]],12,31) -> 
A12: =IF(termsavtgttable[[#This Row],[Year]]>YEAR(TODAY()),NA(),termsavtgttable[[#This Row],[Year]]-YEAR('General Input'!$C$19)+1) ->  | B12: =IF(ISNUMBER(termsavtgttable[[#This Row],[Term]]),SUMIFS(QRTable[Annual $ Savings],QRTable[Project Status],"Completed",QRTable[Incentive Program],"<>*PES",QRTable[Incentive Program],"<>*DES",QRTable[In Service Date],"<="&termsavtgttable[[#This Row],[Dummy Year]]),NA()) ->  | C12: =IF(ISNUMBER(termsavtgttable[[#This Row],[Term]]),SUMIF('Host Organization Goals'!$A$8:$A$14,"<="&termsavtgttable[Year],'Host Organization Goals'!$G$8:$G$14)) -> FALSE | D12: =IF(ISNUMBER(termsavtgttable[[#This Row],[Term]]),SUMIFS(QRTable[Annual $ Savings],QRTable[Project Status],"=Underway",QRTable[Incentive Program],"<>*PES",QRTable[Incentive Program],"<>*DES",QRTable[Estimated Completion Date],"<="&termsavtgttable[[#This Row],[Dummy Year]]),NA()) ->  | E12: =IF(ISNUMBER(termsavtgttable[[#This Row],[Term]]),SUMIFS(QRTable[Annual $ Savings],QRTable[Project Status],"=Investigation Stage",QRTable[Incentive Program],"<>*PES",QRTable[Incentive Program],"<>*DES",QRTable[Estimated Completion Date],"<="&termsavtgttable[[#This Row],[Dummy Year]]),NA()) ->  | F12: =termsavtgttable[[#This Row],[$ Savings]]/'Executive Summary'!$O$8 ->  | G12: =IF('Host Organization Goals'!$A$8+termsavtgttable[[#This Row],[Index]]-1<=YEAR(TODAY()),'Executive Summary'!$O$4+termsavtgttable[[#This Row],[Index]]-1,NA()) ->  | H12: 7 | I12: =DATE(termsavtgttable[[#This Row],[Year]],12,31) -> 
A13: =IF(termsavtgttable[[#This Row],[Year]]>YEAR(TODAY()),NA(),termsavtgttable[[#This Row],[Year]]-YEAR('General Input'!$C$19)+1) ->  | B13: =IF(ISNUMBER(termsavtgttable[[#This Row],[Term]]),SUMIFS(QRTable[Annual $ Savings],QRTable[Project Status],"Completed",QRTable[Incentive Program],"<>*PES",QRTable[Incentive Program],"<>*DES",QRTable[In Service Date],"<="&termsavtgttable[[#This Row],[Dummy Year]]),NA()) ->  | C13: =IF(ISNUMBER(termsavtgttable[[#This Row],[Term]]),SUMIF('Host Organization Goals'!$A$8:$A$14,"<="&termsavtgttable[Year],'Host Organization Goals'!$G$8:$G$14)) -> FALSE | D13: =IF(ISNUMBER(termsavtgttable[[#This Row],[Term]]),SUMIFS(QRTable[Annual $ Savings],QRTable[Project Status],"=Underway",QRTable[Incentive Program],"<>*PES",QRTable[Incentive Program],"<>*DES",QRTable[Estimated Completion Date],"<="&termsavtgttable[[#This Row],[Dummy Year]]),NA()) ->  | E13: =IF(ISNUMBER(termsavtgttable[[#This Row],[Term]]),SUMIFS(QRTable[Annual $ Savings],QRTable[Project Status],"=Investigation Stage",QRTable[Incentive Program],"<>*PES",QRTable[Incentive Program],"<>*DES",QRTable[Estimated Completion Date],"<="&termsavtgttable[[#This Row],[Dummy Year]]),NA()) ->  | F13: =termsavtgttable[[#This Row],[$ Savings]]/'Executive Summary'!$O$8 ->  | G13: =IF('Host Organization Goals'!$A$8+termsavtgttable[[#This Row],[Index]]-1<=YEAR(TODAY()),'Executive Summary'!$O$4+termsavtgttable[[#This Row],[Index]]-1,NA()) ->  | H13: 8 | I13: =DATE(termsavtgttable[[#This Row],[Year]],12,31) -> 
A14: =IF(termsavtgttable[[#This Row],[Year]]>YEAR(TODAY()),NA(),termsavtgttable[[#This Row],[Year]]-YEAR('General Input'!$C$19)+1) ->  | B14: =IF(ISNUMBER(termsavtgttable[[#This Row],[Term]]),SUMIFS(QRTable[Annual $ Savings],QRTable[Project Status],"Completed",QRTable[Incentive Program],"<>*PES",QRTable[Incentive Program],"<>*DES",QRTable[In Service Date],"<="&termsavtgttable[[#This Row],[Dummy Year]]),NA()) ->  | C14: =IF(ISNUMBER(termsavtgttable[[#This Row],[Term]]),SUMIF('Host Organization Goals'!$A$8:$A$14,"<="&termsavtgttable[Year],'Host Organization Goals'!$G$8:$G$14)) -> FALSE | D14: =IF(ISNUMBER(termsavtgttable[[#This Row],[Term]]),SUMIFS(QRTable[Annual $ Savings],QRTable[Project Status],"=Underway",QRTable[Incentive Program],"<>*PES",QRTable[Incentive Program],"<>*DES",QRTable[Estimated Completion Date],"<="&termsavtgttable[[#This Row],[Dummy Year]]),NA()) ->  | E14: =IF(ISNUMBER(termsavtgttable[[#This Row],[Term]]),SUMIFS(QRTable[Annual $ Savings],QRTable[Project Status],"=Investigation Stage",QRTable[Incentive Program],"<>*PES",QRTable[Incentive Program],"<>*DES",QRTable[Estimated Completion Date],"<="&termsavtgttable[[#This Row],[Dummy Year]]),NA()) ->  | F14: =termsavtgttable[[#This Row],[$ Savings]]/'Executive Summary'!$O$8 ->  | G14: =IF('Host Organization Goals'!$A$8+termsavtgttable[[#This Row],[Index]]-1<=YEAR(TODAY()),'Executive Summary'!$O$4+termsavtgttable[[#This Row],[Index]]-1,NA()) ->  | H14: 9 | I14: =DATE(termsavtgttable[[#This Row],[Year]],12,31) -> 
A16: Savings/Cost/Incentive Table
A17: Year | B17: Scenario 1 Savings | C17: Scenario 1 Project Cost | D17: Net of Annual Savings and Costs | E17: Net Saving Cost Incentive | F17: Scenario 1 Incentive | G17: Return w/o Incentive | H17: Return w/ Incentive | I17: Display | J17: Marker 1 | K17: Marker 2 | L17: Slope | M17: Column1 | N17: w/o Incen A | O17: B | P17: C | Q17: D | R17: Actual Mwh | S17: Actual Cost/Incentive | T17: Actual Return
A18: =IF(ROW()=18,'Host Organization Goals'!$A$8,A17+1) -> 2014 | B18: =SUMIFS(QRTable[Annual $ Savings],QRTable[Project Status],"<>Inactive",QRTable[Incentive Program],"<>*PES",QRTable[Incentive Program],"<>*DES",QRTable[Estimated Completion Date],"<="&DATE(cumulativetable[[#This Row],[Year]]-1,12,31)) -> 0 | C18: =-SUMIFS(QRTable[Project Cost],QRTable[Estimated Completion Date],"<="&DATE(cumulativetable[[#This Row],[Year]],12,31),QRTable[Estimated Completion Date],">="&DATE(cumulativetable[[#This Row],[Year]],1,1)) -> 0 | D18: =cumulativetable[[#This Row],[Scenario 1 Project Cost]]+cumulativetable[[#This Row],[Scenario 1 Savings]] -> 0 | E18: =cumulativetable[[#This Row],[Scenario 1 Project Cost]]+cumulativetable[[#This Row],[Scenario 1 Savings]]+cumulativetable[[#This Row],[Scenario 1 Incentive ]] -> 0 | F18: =SUMIFS(QRTable[Capital Incentive],QRTable[Project Status],"<>Inactive",QRTable[Estimated Completion Date],"<="&DATE(cumulativetable[[#This Row],[Year]]-1,12,31),QRTable[Estimated Completion Date],">="&DATE(cumulativetable[[#This Row],[Year]]-1,1,1)) -> 0 | G18: =IF(ISNUMBER(G17/1),B18+G17+C18,B18+C18) -> 0 | H18: =IF(ISNUMBER(H17/1),B18+H17+C18+F18,B18+C18+F18) -> 0 | I18: =IF(cumulativetable[[#This Row],[Year]]>'Executive Summary'!$O$4+'Executive Summary'!$O$11,NA(),cumulativetable[[#This Row],[Year]]) -> 2014 | J18: =IF(AND(H18>0,H17<0),cumulativetable[[#This Row],[Year]]-1,0) -> 0 | K18: =IF(cumulativetable[[#This Row],[Marker 1]]=MAX(cumulativetable[Marker 1]),cumulativetable[[#This Row],[Marker 1]],0) -> 0 | L18: =IF(cumulativetable[[#This Row],[Marker 2]]<>0,(ABS(H18)+ABS(H17))/12,0) -> 0 | M18: =IF(cumulativetable[[#This Row],[Marker 2]]<>0,ABS(H17)/cumulativetable[[#This Row],[Slope]],0)/10 -> 0 | N18: =IF(AND(G18>0,G17<0),cumulativetable[[#This Row],[Year]]-1,0) -> 0 | O18: =IF(cumulativetable[[#This Row],[w/o Incen A]]=MAX(cumulativetable[w/o Incen A]),cumulativetable[[#This Row],[w/o Incen A]],0) -> 0 | P18: =IF(cumulativetable[[#This Row],[B]]<>0,(ABS(G18)+ABS(G17))/12,0) -> 0 | Q18: =IF(cumulativetable[[#This Row],[B]]<>0,ABS(G17)/cumulativetable[[#This Row],[C]],0)/10 -> 0 | R18: =SUMIFS(QRTable[Annual $ Savings],QRTable[Project Status],"Completed",QRTable[Incentive Program],"<>*PES",QRTable[Incentive Program],"<>*DES",QRTable[Incentive Program],"<>Audit*",QRTable[In Service Date],"<="&DATE(cumulativetable[[#This Row],[Year]]-1,12,31)) -> 0 | S18: =-SUMIFS(QRTable[Project Cost],QRTable[In Service Date],"<="&DATE(cumulativetable[[#This Row],[Year]],12,31),QRTable[In Service Date],">="&DATE(cumulativetable[[#This Row],[Year]],1,1))+SUMIFS(QRTable[Capital Incentive],QRTable[Project Status],"Completed",QRTable[In Service Date],"<="&DATE(cumulativetable[[#This Row],[Year]],12,31),QRTable[In Service Date],">="&DATE(cumulativetable[[#This Row],[Year]]-1,1,1)) -> 0 | T18: =IF(cumulativetable[[#This Row],[Year]]>YEAR(TODAY()),NA(),IF(ISNUMBER(T17/1),R18+T17+S18,R18+S18)) -> 0
A19: =IF(ROW()=18,'Host Organization Goals'!$A$8,A18+1) -> 2015 | B19: =SUMIFS(QRTable[Annual $ Savings],QRTable[Project Status],"<>Inactive",QRTable[Incentive Program],"<>*PES",QRTable[Incentive Program],"<>*DES",QRTable[Estimated Completion Date],"<="&DATE(cumulativetable[[#This Row],[Year]]-1,12,31)) -> 0 | C19: =-SUMIFS(QRTable[Project Cost],QRTable[Estimated Completion Date],"<="&DATE(cumulativetable[[#This Row],[Year]],12,31),QRTable[Estimated Completion Date],">="&DATE(cumulativetable[[#This Row],[Year]],1,1)) -> 0 | D19: =cumulativetable[[#This Row],[Scenario 1 Project Cost]]+cumulativetable[[#This Row],[Scenario 1 Savings]] -> 0 | E19: =cumulativetable[[#This Row],[Scenario 1 Project Cost]]+cumulativetable[[#This Row],[Scenario 1 Savings]]+cumulativetable[[#This Row],[Scenario 1 Incentive ]] -> 0 | F19: =SUMIFS(QRTable[Capital Incentive],QRTable[Project Status],"<>Inactive",QRTable[Estimated Completion Date],"<="&DATE(cumulativetable[[#This Row],[Year]]-1,12,31),QRTable[Estimated Completion Date],">="&DATE(cumulativetable[[#This Row],[Year]]-1,1,1)) -> 0 | G19: 0 | H19: 0 | I19: =IF(cumulativetable[[#This Row],[Year]]>'Executive Summary'!$O$4+'Executive Summary'!$O$11,NA(),cumulativetable[[#This Row],[Year]]) -> 2015 | J19: =IF(AND(H19>0,H18<0),cumulativetable[[#This Row],[Year]]-1,0) -> 0 | K19: =IF(cumulativetable[[#This Row],[Marker 1]]=MAX(cumulativetable[Marker 1]),cumulativetable[[#This Row],[Marker 1]],0) -> 0 | L19: =IF(cumulativetable[[#This Row],[Marker 2]]<>0,(ABS(H19)+ABS(H18))/12,0) -> 0 | M19: =IF(cumulativetable[[#This Row],[Marker 2]]<>0,ABS(H18)/cumulativetable[[#This Row],[Slope]],0)/10 -> 0 | N19: =IF(AND(G19>0,G18<0),cumulativetable[[#This Row],[Year]]-1,0) -> 0 | O19: =IF(cumulativetable[[#This Row],[w/o Incen A]]=MAX(cumulativetable[w/o Incen A]),cumulativetable[[#This Row],[w/o Incen A]],0) -> 0 | P19: =IF(cumulativetable[[#This Row],[B]]<>0,(ABS(G19)+ABS(G18))/12,0) -> 0 | Q19: =IF(cumulativetable[[#This Row],[B]]<>0,ABS(G18)/cumulativetable[[#This Row],[C]],0)/10 -> 0 | R19: =SUMIFS(QRTable[Annual $ Savings],QRTable[Project Status],"Completed",QRTable[Incentive Program],"<>*PES",QRTable[Incentive Program],"<>*DES",QRTable[Incentive Program],"<>Audit*",QRTable[In Service Date],"<="&DATE(cumulativetable[[#This Row],[Year]]-1,12,31)) -> 0 | S19: =-SUMIFS(QRTable[Project Cost],QRTable[In Service Date],"<="&DATE(cumulativetable[[#This Row],[Year]],12,31),QRTable[In Service Date],">="&DATE(cumulativetable[[#This Row],[Year]],1,1))+SUMIFS(QRTable[Capital Incentive],QRTable[Project Status],"Completed",QRTable[In Service Date],"<="&DATE(cumulativetable[[#This Row],[Year]],12,31),QRTable[In Service Date],">="&DATE(cumulativetable[[#This Row],[Year]]-1,1,1)) -> 0 | T19: =IF(cumulativetable[[#This Row],[Year]]>YEAR(TODAY()),NA(),IF(ISNUMBER(T18/1),R19+T18+S19,R19+S19)) -> 0
A20: =IF(ROW()=18,'Host Organization Goals'!$A$8,A19+1) -> 2016 | B20: =SUMIFS(QRTable[Annual $ Savings],QRTable[Project Status],"<>Inactive",QRTable[Incentive Program],"<>*PES",QRTable[Incentive Program],"<>*DES",QRTable[Estimated Completion Date],"<="&DATE(cumulativetable[[#This Row],[Year]]-1,12,31)) -> 0 | C20: =-SUMIFS(QRTable[Project Cost],QRTable[Estimated Completion Date],"<="&DATE(cumulativetable[[#This Row],[Year]],12,31),QRTable[Estimated Completion Date],">="&DATE(cumulativetable[[#This Row],[Year]],1,1)) -> 0 | D20: =cumulativetable[[#This Row],[Scenario 1 Project Cost]]+cumulativetable[[#This Row],[Scenario 1 Savings]] -> 0 | E20: =cumulativetable[[#This Row],[Scenario 1 Project Cost]]+cumulativetable[[#This Row],[Scenario 1 Savings]]+cumulativetable[[#This Row],[Scenario 1 Incentive ]] -> 0 | F20: =SUMIFS(QRTable[Capital Incentive],QRTable[Project Status],"<>Inactive",QRTable[Estimated Completion Date],"<="&DATE(cumulativetable[[#This Row],[Year]]-1,12,31),QRTable[Estimated Completion Date],">="&DATE(cumulativetable[[#This Row],[Year]]-1,1,1)) -> 0 | G20: 0 | H20: 0 | I20: =IF(cumulativetable[[#This Row],[Year]]>'Executive Summary'!$O$4+'Executive Summary'!$O$11,NA(),cumulativetable[[#This Row],[Year]]) -> 2016 | J20: =IF(AND(H20>0,H19<0),cumulativetable[[#This Row],[Year]]-1,0) -> 0 | K20: =IF(cumulativetable[[#This Row],[Marker 1]]=MAX(cumulativetable[Marker 1]),cumulativetable[[#This Row],[Marker 1]],0) -> 0 | L20: =IF(cumulativetable[[#This Row],[Marker 2]]<>0,(ABS(H20)+ABS(H19))/12,0) -> 0 | M20: =IF(cumulativetable[[#This Row],[Marker 2]]<>0,ABS(H19)/cumulativetable[[#This Row],[Slope]],0)/10 -> 0 | N20: =IF(AND(G20>0,G19<0),cumulativetable[[#This Row],[Year]]-1,0) -> 0 | O20: =IF(cumulativetable[[#This Row],[w/o Incen A]]=MAX(cumulativetable[w/o Incen A]),cumulativetable[[#This Row],[w/o Incen A]],0) -> 0 | P20: =IF(cumulativetable[[#This Row],[B]]<>0,(ABS(G20)+ABS(G19))/12,0) -> 0 | Q20: =IF(cumulativetable[[#This Row],[B]]<>0,ABS(G19)/cumulativetable[[#This Row],[C]],0)/10 -> 0 | R20: =SUMIFS(QRTable[Annual $ Savings],QRTable[Project Status],"Completed",QRTable[Incentive Program],"<>*PES",QRTable[Incentive Program],"<>*DES",QRTable[Incentive Program],"<>Audit*",QRTable[In Service Date],"<="&DATE(cumulativetable[[#This Row],[Year]]-1,12,31)) -> 0 | S20: =-SUMIFS(QRTable[Project Cost],QRTable[In Service Date],"<="&DATE(cumulativetable[[#This Row],[Year]],12,31),QRTable[In Service Date],">="&DATE(cumulativetable[[#This Row],[Year]],1,1))+SUMIFS(QRTable[Capital Incentive],QRTable[Project Status],"Completed",QRTable[In Service Date],"<="&DATE(cumulativetable[[#This Row],[Year]],12,31),QRTable[In Service Date],">="&DATE(cumulativetable[[#This Row],[Year]]-1,1,1)) -> 0 | T20: =IF(cumulativetable[[#This Row],[Year]]>YEAR(TODAY()),NA(),IF(ISNUMBER(T19/1),R20+T19+S20,R20+S20)) -> 0
A21: =IF(ROW()=18,'Host Organization Goals'!$A$8,A20+1) -> 2017 | B21: =SUMIFS(QRTable[Annual $ Savings],QRTable[Project Status],"<>Inactive",QRTable[Incentive Program],"<>*PES",QRTable[Incentive Program],"<>*DES",QRTable[Estimated Completion Date],"<="&DATE(cumulativetable[[#This Row],[Year]]-1,12,31)) -> 0 | C21: =-SUMIFS(QRTable[Project Cost],QRTable[Estimated Completion Date],"<="&DATE(cumulativetable[[#This Row],[Year]],12,31),QRTable[Estimated Completion Date],">="&DATE(cumulativetable[[#This Row],[Year]],1,1)) -> 0 | D21: =cumulativetable[[#This Row],[Scenario 1 Project Cost]]+cumulativetable[[#This Row],[Scenario 1 Savings]] -> 0 | E21: =cumulativetable[[#This Row],[Scenario 1 Project Cost]]+cumulativetable[[#This Row],[Scenario 1 Savings]]+cumulativetable[[#This Row],[Scenario 1 Incentive ]] -> 0 | F21: =SUMIFS(QRTable[Capital Incentive],QRTable[Project Status],"<>Inactive",QRTable[Estimated Completion Date],"<="&DATE(cumulativetable[[#This Row],[Year]]-1,12,31),QRTable[Estimated Completion Date],">="&DATE(cumulativetable[[#This Row],[Year]]-1,1,1)) -> 0 | G21: 0 | H21: 0 | I21: =IF(cumulativetable[[#This Row],[Year]]>'Executive Summary'!$O$4+'Executive Summary'!$O$11,NA(),cumulativetable[[#This Row],[Year]]) -> 2017 | J21: =IF(AND(H21>0,H20<0),cumulativetable[[#This Row],[Year]]-1,0) -> 0 | K21: =IF(cumulativetable[[#This Row],[Marker 1]]=MAX(cumulativetable[Marker 1]),cumulativetable[[#This Row],[Marker 1]],0) -> 0 | L21: =IF(cumulativetable[[#This Row],[Marker 2]]<>0,(ABS(H21)+ABS(H20))/12,0) -> 0 | M21: =IF(cumulativetable[[#This Row],[Marker 2]]<>0,ABS(H20)/cumulativetable[[#This Row],[Slope]],0)/10 -> 0 | N21: =IF(AND(G21>0,G20<0),cumulativetable[[#This Row],[Year]]-1,0) -> 0 | O21: =IF(cumulativetable[[#This Row],[w/o Incen A]]=MAX(cumulativetable[w/o Incen A]),cumulativetable[[#This Row],[w/o Incen A]],0) -> 0 | P21: =IF(cumulativetable[[#This Row],[B]]<>0,(ABS(G21)+ABS(G20))/12,0) -> 0 | Q21: =IF(cumulativetable[[#This Row],[B]]<>0,ABS(G20)/cumulativetable[[#This Row],[C]],0)/10 -> 0 | R21: =SUMIFS(QRTable[Annual $ Savings],QRTable[Project Status],"Completed",QRTable[Incentive Program],"<>*PES",QRTable[Incentive Program],"<>*DES",QRTable[Incentive Program],"<>Audit*",QRTable[In Service Date],"<="&DATE(cumulativetable[[#This Row],[Year]]-1,12,31)) -> 0 | S21: =-SUMIFS(QRTable[Project Cost],QRTable[In Service Date],"<="&DATE(cumulativetable[[#This Row],[Year]],12,31),QRTable[In Service Date],">="&DATE(cumulativetable[[#This Row],[Year]],1,1))+SUMIFS(QRTable[Capital Incentive],QRTable[Project Status],"Completed",QRTable[In Service Date],"<="&DATE(cumulativetable[[#This Row],[Year]],12,31),QRTable[In Service Date],">="&DATE(cumulativetable[[#This Row],[Year]]-1,1,1)) -> 0 | T21: =IF(cumulativetable[[#This Row],[Year]]>YEAR(TODAY()),NA(),IF(ISNUMBER(T20/1),R21+T20+S21,R21+S21)) -> 
A22: =IF(ROW()=18,'Host Organization Goals'!$A$8,A21+1) -> 2018 | B22: =SUMIFS(QRTable[Annual $ Savings],QRTable[Project Status],"<>Inactive",QRTable[Incentive Program],"<>*PES",QRTable[Incentive Program],"<>*DES",QRTable[Estimated Completion Date],"<="&DATE(cumulativetable[[#This Row],[Year]]-1,12,31)) -> 0 | C22: =-SUMIFS(QRTable[Project Cost],QRTable[Estimated Completion Date],"<="&DATE(cumulativetable[[#This Row],[Year]],12,31),QRTable[Estimated Completion Date],">="&DATE(cumulativetable[[#This Row],[Year]],1,1)) -> 0 | D22: =cumulativetable[[#This Row],[Scenario 1 Project Cost]]+cumulativetable[[#This Row],[Scenario 1 Savings]] -> 0 | E22: =cumulativetable[[#This Row],[Scenario 1 Project Cost]]+cumulativetable[[#This Row],[Scenario 1 Savings]]+cumulativetable[[#This Row],[Scenario 1 Incentive ]] -> 0 | F22: =SUMIFS(QRTable[Capital Incentive],QRTable[Project Status],"<>Inactive",QRTable[Estimated Completion Date],"<="&DATE(cumulativetable[[#This Row],[Year]]-1,12,31),QRTable[Estimated Completion Date],">="&DATE(cumulativetable[[#This Row],[Year]]-1,1,1)) -> 0 | G22: 0 | H22: 0 | I22: =IF(cumulativetable[[#This Row],[Year]]>'Executive Summary'!$O$4+'Executive Summary'!$O$11,NA(),cumulativetable[[#This Row],[Year]]) -> 2018 | J22: =IF(AND(H22>0,H21<0),cumulativetable[[#This Row],[Year]]-1,0) -> 0 | K22: =IF(cumulativetable[[#This Row],[Marker 1]]=MAX(cumulativetable[Marker 1]),cumulativetable[[#This Row],[Marker 1]],0) -> 0 | L22: =IF(cumulativetable[[#This Row],[Marker 2]]<>0,(ABS(H22)+ABS(H21))/12,0) -> 0 | M22: =IF(cumulativetable[[#This Row],[Marker 2]]<>0,ABS(H21)/cumulativetable[[#This Row],[Slope]],0)/10 -> 0 | N22: =IF(AND(G22>0,G21<0),cumulativetable[[#This Row],[Year]]-1,0) -> 0 | O22: =IF(cumulativetable[[#This Row],[w/o Incen A]]=MAX(cumulativetable[w/o Incen A]),cumulativetable[[#This Row],[w/o Incen A]],0) -> 0 | P22: =IF(cumulativetable[[#This Row],[B]]<>0,(ABS(G22)+ABS(G21))/12,0) -> 0 | Q22: =IF(cumulativetable[[#This Row],[B]]<>0,ABS(G21)/cumulativetable[[#This Row],[C]],0)/10 -> 0 | R22: =SUMIFS(QRTable[Annual $ Savings],QRTable[Project Status],"Completed",QRTable[Incentive Program],"<>*PES",QRTable[Incentive Program],"<>*DES",QRTable[Incentive Program],"<>Audit*",QRTable[In Service Date],"<="&DATE(cumulativetable[[#This Row],[Year]]-1,12,31)) -> 0 | S22: =-SUMIFS(QRTable[Project Cost],QRTable[In Service Date],"<="&DATE(cumulativetable[[#This Row],[Year]],12,31),QRTable[In Service Date],">="&DATE(cumulativetable[[#This Row],[Year]],1,1))+SUMIFS(QRTable[Capital Incentive],QRTable[Project Status],"Completed",QRTable[In Service Date],"<="&DATE(cumulativetable[[#This Row],[Year]],12,31),QRTable[In Service Date],">="&DATE(cumulativetable[[#This Row],[Year]]-1,1,1)) -> 0 | T22: =IF(cumulativetable[[#This Row],[Year]]>YEAR(TODAY()),NA(),IF(ISNUMBER(T21/1),R22+T21+S22,R22+S22)) -> 
A23: =IF(ROW()=18,'Host Organization Goals'!$A$8,A22+1) -> 2019 | B23: =SUMIFS(QRTable[Annual $ Savings],QRTable[Project Status],"<>Inactive",QRTable[Incentive Program],"<>*PES",QRTable[Incentive Program],"<>*DES",QRTable[Estimated Completion Date],"<="&DATE(cumulativetable[[#This Row],[Year]]-1,12,31)) -> 0 | C23: =-SUMIFS(QRTable[Project Cost],QRTable[Estimated Completion Date],"<="&DATE(cumulativetable[[#This Row],[Year]],12,31),QRTable[Estimated Completion Date],">="&DATE(cumulativetable[[#This Row],[Year]],1,1)) -> 0 | D23: =cumulativetable[[#This Row],[Scenario 1 Project Cost]]+cumulativetable[[#This Row],[Scenario 1 Savings]] -> 0 | E23: =cumulativetable[[#This Row],[Scenario 1 Project Cost]]+cumulativetable[[#This Row],[Scenario 1 Savings]]+cumulativetable[[#This Row],[Scenario 1 Incentive ]] -> 0 | F23: =SUMIFS(QRTable[Capital Incentive],QRTable[Project Status],"<>Inactive",QRTable[Estimated Completion Date],"<="&DATE(cumulativetable[[#This Row],[Year]]-1,12,31),QRTable[Estimated Completion Date],">="&DATE(cumulativetable[[#This Row],[Year]]-1,1,1)) -> 0 | G23: 0 | H23: 0 | I23: =IF(cumulativetable[[#This Row],[Year]]>'Executive Summary'!$O$4+'Executive Summary'!$O$11,NA(),cumulativetable[[#This Row],[Year]]) -> 2019 | J23: =IF(AND(H23>0,H22<0),cumulativetable[[#This Row],[Year]]-1,0) -> 0 | K23: =IF(cumulativetable[[#This Row],[Marker 1]]=MAX(cumulativetable[Marker 1]),cumulativetable[[#This Row],[Marker 1]],0) -> 0 | L23: =IF(cumulativetable[[#This Row],[Marker 2]]<>0,(ABS(H23)+ABS(H22))/12,0) -> 0 | M23: =IF(cumulativetable[[#This Row],[Marker 2]]<>0,ABS(H22)/cumulativetable[[#This Row],[Slope]],0)/10 -> 0 | N23: =IF(AND(G23>0,G22<0),cumulativetable[[#This Row],[Year]]-1,0) -> 0 | O23: =IF(cumulativetable[[#This Row],[w/o Incen A]]=MAX(cumulativetable[w/o Incen A]),cumulativetable[[#This Row],[w/o Incen A]],0) -> 0 | P23: =IF(cumulativetable[[#This Row],[B]]<>0,(ABS(G23)+ABS(G22))/12,0) -> 0 | Q23: =IF(cumulativetable[[#This Row],[B]]<>0,ABS(G22)/cumulativetable[[#This Row],[C]],0)/10 -> 0 | R23: =SUMIFS(QRTable[Annual $ Savings],QRTable[Project Status],"Completed",QRTable[Incentive Program],"<>*PES",QRTable[Incentive Program],"<>*DES",QRTable[Incentive Program],"<>Audit*",QRTable[In Service Date],"<="&DATE(cumulativetable[[#This Row],[Year]]-1,12,31)) -> 0 | S23: =-SUMIFS(QRTable[Project Cost],QRTable[In Service Date],"<="&DATE(cumulativetable[[#This Row],[Year]],12,31),QRTable[In Service Date],">="&DATE(cumulativetable[[#This Row],[Year]],1,1))+SUMIFS(QRTable[Capital Incentive],QRTable[Project Status],"Completed",QRTable[In Service Date],"<="&DATE(cumulativetable[[#This Row],[Year]],12,31),QRTable[In Service Date],">="&DATE(cumulativetable[[#This Row],[Year]]-1,1,1)) -> 0 | T23: =IF(cumulativetable[[#This Row],[Year]]>YEAR(TODAY()),NA(),IF(ISNUMBER(T22/1),R23+T22+S23,R23+S23)) -> 
A24: =IF(ROW()=18,'Host Organization Goals'!$A$8,A23+1) -> 2020 | B24: =SUMIFS(QRTable[Annual $ Savings],QRTable[Project Status],"<>Inactive",QRTable[Incentive Program],"<>*PES",QRTable[Incentive Program],"<>*DES",QRTable[Estimated Completion Date],"<="&DATE(cumulativetable[[#This Row],[Year]]-1,12,31)) -> 0 | C24: =-SUMIFS(QRTable[Project Cost],QRTable[Estimated Completion Date],"<="&DATE(cumulativetable[[#This Row],[Year]],12,31),QRTable[Estimated Completion Date],">="&DATE(cumulativetable[[#This Row],[Year]],1,1)) -> 0 | D24: =cumulativetable[[#This Row],[Scenario 1 Project Cost]]+cumulativetable[[#This Row],[Scenario 1 Savings]] -> 0 | E24: =cumulativetable[[#This Row],[Scenario 1 Project Cost]]+cumulativetable[[#This Row],[Scenario 1 Savings]]+cumulativetable[[#This Row],[Scenario 1 Incentive ]] -> 0 | F24: =SUMIFS(QRTable[Capital Incentive],QRTable[Project Status],"<>Inactive",QRTable[Estimated Completion Date],"<="&DATE(cumulativetable[[#This Row],[Year]]-1,12,31),QRTable[Estimated Completion Date],">="&DATE(cumulativetable[[#This Row],[Year]]-1,1,1)) -> 0 | G24: 0 | H24: 0 | I24: =IF(cumulativetable[[#This Row],[Year]]>'Executive Summary'!$O$4+'Executive Summary'!$O$11,NA(),cumulativetable[[#This Row],[Year]]) -> 2020 | J24: =IF(AND(H24>0,H23<0),cumulativetable[[#This Row],[Year]]-1,0) -> 0 | K24: =IF(cumulativetable[[#This Row],[Marker 1]]=MAX(cumulativetable[Marker 1]),cumulativetable[[#This Row],[Marker 1]],0) -> 0 | L24: =IF(cumulativetable[[#This Row],[Marker 2]]<>0,(ABS(H24)+ABS(H23))/12,0) -> 0 | M24: =IF(cumulativetable[[#This Row],[Marker 2]]<>0,ABS(H23)/cumulativetable[[#This Row],[Slope]],0)/10 -> 0 | N24: =IF(AND(G24>0,G23<0),cumulativetable[[#This Row],[Year]]-1,0) -> 0 | O24: =IF(cumulativetable[[#This Row],[w/o Incen A]]=MAX(cumulativetable[w/o Incen A]),cumulativetable[[#This Row],[w/o Incen A]],0) -> 0 | P24: =IF(cumulativetable[[#This Row],[B]]<>0,(ABS(G24)+ABS(G23))/12,0) -> 0 | Q24: =IF(cumulativetable[[#This Row],[B]]<>0,ABS(G23)/cumulativetable[[#This Row],[C]],0)/10 -> 0 | R24: =SUMIFS(QRTable[Annual $ Savings],QRTable[Project Status],"Completed",QRTable[Incentive Program],"<>*PES",QRTable[Incentive Program],"<>*DES",QRTable[Incentive Program],"<>Audit*",QRTable[In Service Date],"<="&DATE(cumulativetable[[#This Row],[Year]]-1,12,31)) -> 0 | S24: =-SUMIFS(QRTable[Project Cost],QRTable[In Service Date],"<="&DATE(cumulativetable[[#This Row],[Year]],12,31),QRTable[In Service Date],">="&DATE(cumulativetable[[#This Row],[Year]],1,1))+SUMIFS(QRTable[Capital Incentive],QRTable[Project Status],"Completed",QRTable[In Service Date],"<="&DATE(cumulativetable[[#This Row],[Year]],12,31),QRTable[In Service Date],">="&DATE(cumulativetable[[#This Row],[Year]]-1,1,1)) -> 0 | T24: =IF(cumulativetable[[#This Row],[Year]]>YEAR(TODAY()),NA(),IF(ISNUMBER(T23/1),R24+T23+S24,R24+S24)) -> 
A25: =IF(ROW()=18,'Host Organization Goals'!$A$8,A24+1) -> 2021 | B25: =SUMIFS(QRTable[Annual $ Savings],QRTable[Project Status],"<>Inactive",QRTable[Incentive Program],"<>*PES",QRTable[Incentive Program],"<>*DES",QRTable[Estimated Completion Date],"<="&DATE(cumulativetable[[#This Row],[Year]]-1,12,31)) -> 0 | C25: =-SUMIFS(QRTable[Project Cost],QRTable[Estimated Completion Date],"<="&DATE(cumulativetable[[#This Row],[Year]],12,31),QRTable[Estimated Completion Date],">="&DATE(cumulativetable[[#This Row],[Year]],1,1)) -> 0 | D25: =cumulativetable[[#This Row],[Scenario 1 Project Cost]]+cumulativetable[[#This Row],[Scenario 1 Savings]] -> 0 | E25: =cumulativetable[[#This Row],[Scenario 1 Project Cost]]+cumulativetable[[#This Row],[Scenario 1 Savings]]+cumulativetable[[#This Row],[Scenario 1 Incentive ]] -> 0 | F25: =SUMIFS(QRTable[Capital Incentive],QRTable[Project Status],"<>Inactive",QRTable[Estimated Completion Date],"<="&DATE(cumulativetable[[#This Row],[Year]]-1,12,31),QRTable[Estimated Completion Date],">="&DATE(cumulativetable[[#This Row],[Year]]-1,1,1)) -> 0 | G25: 0 | H25: 0 | I25: =IF(cumulativetable[[#This Row],[Year]]>'Executive Summary'!$O$4+'Executive Summary'!$O$11,NA(),cumulativetable[[#This Row],[Year]]) -> 2021 | J25: =IF(AND(H25>0,H24<0),cumulativetable[[#This Row],[Year]]-1,0) -> 0 | K25: =IF(cumulativetable[[#This Row],[Marker 1]]=MAX(cumulativetable[Marker 1]),cumulativetable[[#This Row],[Marker 1]],0) -> 0 | L25: =IF(cumulativetable[[#This Row],[Marker 2]]<>0,(ABS(H25)+ABS(H24))/12,0) -> 0 | M25: =IF(cumulativetable[[#This Row],[Marker 2]]<>0,ABS(H24)/cumulativetable[[#This Row],[Slope]],0)/10 -> 0 | N25: =IF(AND(G25>0,G24<0),cumulativetable[[#This Row],[Year]]-1,0) -> 0 | O25: =IF(cumulativetable[[#This Row],[w/o Incen A]]=MAX(cumulativetable[w/o Incen A]),cumulativetable[[#This Row],[w/o Incen A]],0) -> 0 | P25: =IF(cumulativetable[[#This Row],[B]]<>0,(ABS(G25)+ABS(G24))/12,0) -> 0 | Q25: =IF(cumulativetable[[#This Row],[B]]<>0,ABS(G24)/cumulativetable[[#This Row],[C]],0)/10 -> 0 | R25: =SUMIFS(QRTable[Annual $ Savings],QRTable[Project Status],"Completed",QRTable[Incentive Program],"<>*PES",QRTable[Incentive Program],"<>*DES",QRTable[Incentive Program],"<>Audit*",QRTable[In Service Date],"<="&DATE(cumulativetable[[#This Row],[Year]]-1,12,31)) -> 0 | S25: =-SUMIFS(QRTable[Project Cost],QRTable[In Service Date],"<="&DATE(cumulativetable[[#This Row],[Year]],12,31),QRTable[In Service Date],">="&DATE(cumulativetable[[#This Row],[Year]],1,1))+SUMIFS(QRTable[Capital Incentive],QRTable[Project Status],"Completed",QRTable[In Service Date],"<="&DATE(cumulativetable[[#This Row],[Year]],12,31),QRTable[In Service Date],">="&DATE(cumulativetable[[#This Row],[Year]]-1,1,1)) -> 0 | T25: =IF(cumulativetable[[#This Row],[Year]]>YEAR(TODAY()),NA(),IF(ISNUMBER(T24/1),R25+T24+S25,R25+S25)) -> 
A26: =IF(ROW()=18,'Host Organization Goals'!$A$8,A25+1) -> 2022 | B26: =SUMIFS(QRTable[Annual $ Savings],QRTable[Project Status],"<>Inactive",QRTable[Incentive Program],"<>*PES",QRTable[Incentive Program],"<>*DES",QRTable[Estimated Completion Date],"<="&DATE(cumulativetable[[#This Row],[Year]]-1,12,31)) -> 0 | C26: =-SUMIFS(QRTable[Project Cost],QRTable[Estimated Completion Date],"<="&DATE(cumulativetable[[#This Row],[Year]],12,31),QRTable[Estimated Completion Date],">="&DATE(cumulativetable[[#This Row],[Year]],1,1)) -> 0 | D26: =cumulativetable[[#This Row],[Scenario 1 Project Cost]]+cumulativetable[[#This Row],[Scenario 1 Savings]] -> 0 | E26: =cumulativetable[[#This Row],[Scenario 1 Project Cost]]+cumulativetable[[#This Row],[Scenario 1 Savings]]+cumulativetable[[#This Row],[Scenario 1 Incentive ]] -> 0 | F26: =SUMIFS(QRTable[Capital Incentive],QRTable[Project Status],"<>Inactive",QRTable[Estimated Completion Date],"<="&DATE(cumulativetable[[#This Row],[Year]]-1,12,31),QRTable[Estimated Completion Date],">="&DATE(cumulativetable[[#This Row],[Year]]-1,1,1)) -> 0 | G26: 0 | H26: 0 | I26: =IF(cumulativetable[[#This Row],[Year]]>'Executive Summary'!$O$4+'Executive Summary'!$O$11,NA(),cumulativetable[[#This Row],[Year]]) -> 2022 | J26: =IF(AND(H26>0,H25<0),cumulativetable[[#This Row],[Year]]-1,0) -> 0 | K26: =IF(cumulativetable[[#This Row],[Marker 1]]=MAX(cumulativetable[Marker 1]),cumulativetable[[#This Row],[Marker 1]],0) -> 0 | L26: =IF(cumulativetable[[#This Row],[Marker 2]]<>0,(ABS(H26)+ABS(H25))/12,0) -> 0 | M26: =IF(cumulativetable[[#This Row],[Marker 2]]<>0,ABS(H25)/cumulativetable[[#This Row],[Slope]],0)/10 -> 0 | N26: =IF(AND(G26>0,G25<0),cumulativetable[[#This Row],[Year]]-1,0) -> 0 | O26: =IF(cumulativetable[[#This Row],[w/o Incen A]]=MAX(cumulativetable[w/o Incen A]),cumulativetable[[#This Row],[w/o Incen A]],0) -> 0 | P26: =IF(cumulativetable[[#This Row],[B]]<>0,(ABS(G26)+ABS(G25))/12,0) -> 0 | Q26: =IF(cumulativetable[[#This Row],[B]]<>0,ABS(G25)/cumulativetable[[#This Row],[C]],0)/10 -> 0 | R26: =SUMIFS(QRTable[Annual $ Savings],QRTable[Project Status],"Completed",QRTable[Incentive Program],"<>*PES",QRTable[Incentive Program],"<>*DES",QRTable[Incentive Program],"<>Audit*",QRTable[In Service Date],"<="&DATE(cumulativetable[[#This Row],[Year]]-1,12,31)) -> 0 | S26: =-SUMIFS(QRTable[Project Cost],QRTable[In Service Date],"<="&DATE(cumulativetable[[#This Row],[Year]],12,31),QRTable[In Service Date],">="&DATE(cumulativetable[[#This Row],[Year]],1,1))+SUMIFS(QRTable[Capital Incentive],QRTable[Project Status],"Completed",QRTable[In Service Date],"<="&DATE(cumulativetable[[#This Row],[Year]],12,31),QRTable[In Service Date],">="&DATE(cumulativetable[[#This Row],[Year]]-1,1,1)) -> 0 | T26: =IF(cumulativetable[[#This Row],[Year]]>YEAR(TODAY()),NA(),IF(ISNUMBER(T25/1),R26+T25+S26,R26+S26)) -> 
A27: =IF(ROW()=18,'Host Organization Goals'!$A$8,A26+1) -> 2023 | B27: =SUMIFS(QRTable[Annual $ Savings],QRTable[Project Status],"<>Inactive",QRTable[Incentive Program],"<>*PES",QRTable[Incentive Program],"<>*DES",QRTable[Estimated Completion Date],"<="&DATE(cumulativetable[[#This Row],[Year]]-1,12,31)) -> 0 | C27: =-SUMIFS(QRTable[Project Cost],QRTable[Estimated Completion Date],"<="&DATE(cumulativetable[[#This Row],[Year]],12,31),QRTable[Estimated Completion Date],">="&DATE(cumulativetable[[#This Row],[Year]],1,1)) -> 0 | D27: =cumulativetable[[#This Row],[Scenario 1 Project Cost]]+cumulativetable[[#This Row],[Scenario 1 Savings]] -> 0 | E27: =cumulativetable[[#This Row],[Scenario 1 Project Cost]]+cumulativetable[[#This Row],[Scenario 1 Savings]]+cumulativetable[[#This Row],[Scenario 1 Incentive ]] -> 0 | F27: =SUMIFS(QRTable[Capital Incentive],QRTable[Project Status],"<>Inactive",QRTable[Estimated Completion Date],"<="&DATE(cumulativetable[[#This Row],[Year]]-1,12,31),QRTable[Estimated Completion Date],">="&DATE(cumulativetable[[#This Row],[Year]]-1,1,1)) -> 0 | G27: 0 | H27: 0 | I27: =IF(cumulativetable[[#This Row],[Year]]>'Executive Summary'!$O$4+'Executive Summary'!$O$11,NA(),cumulativetable[[#This Row],[Year]]) -> 2023 | J27: =IF(AND(H27>0,H26<0),cumulativetable[[#This Row],[Year]]-1,0) -> 0 | K27: =IF(cumulativetable[[#This Row],[Marker 1]]=MAX(cumulativetable[Marker 1]),cumulativetable[[#This Row],[Marker 1]],0) -> 0 | L27: =IF(cumulativetable[[#This Row],[Marker 2]]<>0,(ABS(H27)+ABS(H26))/12,0) -> 0 | M27: =IF(cumulativetable[[#This Row],[Marker 2]]<>0,ABS(H26)/cumulativetable[[#This Row],[Slope]],0)/10 -> 0 | N27: =IF(AND(G27>0,G26<0),cumulativetable[[#This Row],[Year]]-1,0) -> 0 | O27: =IF(cumulativetable[[#This Row],[w/o Incen A]]=MAX(cumulativetable[w/o Incen A]),cumulativetable[[#This Row],[w/o Incen A]],0) -> 0 | P27: =IF(cumulativetable[[#This Row],[B]]<>0,(ABS(G27)+ABS(G26))/12,0) -> 0 | Q27: =IF(cumulativetable[[#This Row],[B]]<>0,ABS(G26)/cumulativetable[[#This Row],[C]],0)/10 -> 0 | R27: =SUMIFS(QRTable[Annual $ Savings],QRTable[Project Status],"Completed",QRTable[Incentive Program],"<>*PES",QRTable[Incentive Program],"<>*DES",QRTable[Incentive Program],"<>Audit*",QRTable[In Service Date],"<="&DATE(cumulativetable[[#This Row],[Year]]-1,12,31)) -> 0 | S27: =-SUMIFS(QRTable[Project Cost],QRTable[In Service Date],"<="&DATE(cumulativetable[[#This Row],[Year]],12,31),QRTable[In Service Date],">="&DATE(cumulativetable[[#This Row],[Year]],1,1))+SUMIFS(QRTable[Capital Incentive],QRTable[Project Status],"Completed",QRTable[In Service Date],"<="&DATE(cumulativetable[[#This Row],[Year]],12,31),QRTable[In Service Date],">="&DATE(cumulativetable[[#This Row],[Year]]-1,1,1)) -> 0 | T27: =IF(cumulativetable[[#This Row],[Year]]>YEAR(TODAY()),NA(),IF(ISNUMBER(T26/1),R27+T26+S27,R27+S27)) -> 
A28: =IF(ROW()=18,'Host Organization Goals'!$A$8,A27+1) -> 2024 | B28: =SUMIFS(QRTable[Annual $ Savings],QRTable[Project Status],"<>Inactive",QRTable[Incentive Program],"<>*PES",QRTable[Incentive Program],"<>*DES",QRTable[Estimated Completion Date],"<="&DATE(cumulativetable[[#This Row],[Year]]-1,12,31)) -> 0 | C28: =-SUMIFS(QRTable[Project Cost],QRTable[Estimated Completion Date],"<="&DATE(cumulativetable[[#This Row],[Year]],12,31),QRTable[Estimated Completion Date],">="&DATE(cumulativetable[[#This Row],[Year]],1,1)) -> 0 | D28: =cumulativetable[[#This Row],[Scenario 1 Project Cost]]+cumulativetable[[#This Row],[Scenario 1 Savings]] -> 0 | E28: =cumulativetable[[#This Row],[Scenario 1 Project Cost]]+cumulativetable[[#This Row],[Scenario 1 Savings]]+cumulativetable[[#This Row],[Scenario 1 Incentive ]] -> 0 | F28: =SUMIFS(QRTable[Capital Incentive],QRTable[Project Status],"<>Inactive",QRTable[Estimated Completion Date],"<="&DATE(cumulativetable[[#This Row],[Year]]-1,12,31),QRTable[Estimated Completion Date],">="&DATE(cumulativetable[[#This Row],[Year]]-1,1,1)) -> 0 | G28: 0 | H28: 0 | I28: =IF(cumulativetable[[#This Row],[Year]]>'Executive Summary'!$O$4+'Executive Summary'!$O$11,NA(),cumulativetable[[#This Row],[Year]]) -> 2024 | J28: =IF(AND(H28>0,H27<0),cumulativetable[[#This Row],[Year]]-1,0) -> 0 | K28: =IF(cumulativetable[[#This Row],[Marker 1]]=MAX(cumulativetable[Marker 1]),cumulativetable[[#This Row],[Marker 1]],0) -> 0 | L28: =IF(cumulativetable[[#This Row],[Marker 2]]<>0,(ABS(H28)+ABS(H27))/12,0) -> 0 | M28: =IF(cumulativetable[[#This Row],[Marker 2]]<>0,ABS(H27)/cumulativetable[[#This Row],[Slope]],0)/10 -> 0 | N28: =IF(AND(G28>0,G27<0),cumulativetable[[#This Row],[Year]]-1,0) -> 0 | O28: =IF(cumulativetable[[#This Row],[w/o Incen A]]=MAX(cumulativetable[w/o Incen A]),cumulativetable[[#This Row],[w/o Incen A]],0) -> 0 | P28: =IF(cumulativetable[[#This Row],[B]]<>0,(ABS(G28)+ABS(G27))/12,0) -> 0 | Q28: =IF(cumulativetable[[#This Row],[B]]<>0,ABS(G27)/cumulativetable[[#This Row],[C]],0)/10 -> 0 | R28: =SUMIFS(QRTable[Annual $ Savings],QRTable[Project Status],"Completed",QRTable[Incentive Program],"<>*PES",QRTable[Incentive Program],"<>*DES",QRTable[Incentive Program],"<>Audit*",QRTable[In Service Date],"<="&DATE(cumulativetable[[#This Row],[Year]]-1,12,31)) -> 0 | S28: =-SUMIFS(QRTable[Project Cost],QRTable[In Service Date],"<="&DATE(cumulativetable[[#This Row],[Year]],12,31),QRTable[In Service Date],">="&DATE(cumulativetable[[#This Row],[Year]],1,1))+SUMIFS(QRTable[Capital Incentive],QRTable[Project Status],"Completed",QRTable[In Service Date],"<="&DATE(cumulativetable[[#This Row],[Year]],12,31),QRTable[In Service Date],">="&DATE(cumulativetable[[#This Row],[Year]]-1,1,1)) -> 0 | T28: =IF(cumulativetable[[#This Row],[Year]]>YEAR(TODAY()),NA(),IF(ISNUMBER(T27/1),R28+T27+S28,R28+S28)) -> 
A29: =IF(ROW()=18,'Host Organization Goals'!$A$8,A28+1) -> 2025 | B29: =SUMIFS(QRTable[Annual $ Savings],QRTable[Project Status],"<>Inactive",QRTable[Incentive Program],"<>*PES",QRTable[Incentive Program],"<>*DES",QRTable[Estimated Completion Date],"<="&DATE(cumulativetable[[#This Row],[Year]]-1,12,31)) -> 0 | C29: =-SUMIFS(QRTable[Project Cost],QRTable[Estimated Completion Date],"<="&DATE(cumulativetable[[#This Row],[Year]],12,31),QRTable[Estimated Completion Date],">="&DATE(cumulativetable[[#This Row],[Year]],1,1)) -> 0 | D29: =cumulativetable[[#This Row],[Scenario 1 Project Cost]]+cumulativetable[[#This Row],[Scenario 1 Savings]] -> 0 | E29: =cumulativetable[[#This Row],[Scenario 1 Project Cost]]+cumulativetable[[#This Row],[Scenario 1 Savings]]+cumulativetable[[#This Row],[Scenario 1 Incentive ]] -> 0 | F29: =SUMIFS(QRTable[Capital Incentive],QRTable[Project Status],"<>Inactive",QRTable[Estimated Completion Date],"<="&DATE(cumulativetable[[#This Row],[Year]]-1,12,31),QRTable[Estimated Completion Date],">="&DATE(cumulativetable[[#This Row],[Year]]-1,1,1)) -> 0 | G29: 0 | H29: 0 | I29: =IF(cumulativetable[[#This Row],[Year]]>'Executive Summary'!$O$4+'Executive Summary'!$O$11,NA(),cumulativetable[[#This Row],[Year]]) -> 2025 | J29: =IF(AND(H29>0,H28<0),cumulativetable[[#This Row],[Year]]-1,0) -> 0 | K29: =IF(cumulativetable[[#This Row],[Marker 1]]=MAX(cumulativetable[Marker 1]),cumulativetable[[#This Row],[Marker 1]],0) -> 0 | L29: =IF(cumulativetable[[#This Row],[Marker 2]]<>0,(ABS(H29)+ABS(H28))/12,0) -> 0 | M29: =IF(cumulativetable[[#This Row],[Marker 2]]<>0,ABS(H28)/cumulativetable[[#This Row],[Slope]],0)/10 -> 0 | N29: =IF(AND(G29>0,G28<0),cumulativetable[[#This Row],[Year]]-1,0) -> 0 | O29: =IF(cumulativetable[[#This Row],[w/o Incen A]]=MAX(cumulativetable[w/o Incen A]),cumulativetable[[#This Row],[w/o Incen A]],0) -> 0 | P29: =IF(cumulativetable[[#This Row],[B]]<>0,(ABS(G29)+ABS(G28))/12,0) -> 0 | Q29: =IF(cumulativetable[[#This Row],[B]]<>0,ABS(G28)/cumulativetable[[#This Row],[C]],0)/10 -> 0 | R29: =SUMIFS(QRTable[Annual $ Savings],QRTable[Project Status],"Completed",QRTable[Incentive Program],"<>*PES",QRTable[Incentive Program],"<>*DES",QRTable[Incentive Program],"<>Audit*",QRTable[In Service Date],"<="&DATE(cumulativetable[[#This Row],[Year]]-1,12,31)) -> 0 | S29: =-SUMIFS(QRTable[Project Cost],QRTable[In Service Date],"<="&DATE(cumulativetable[[#This Row],[Year]],12,31),QRTable[In Service Date],">="&DATE(cumulativetable[[#This Row],[Year]],1,1))+SUMIFS(QRTable[Capital Incentive],QRTable[Project Status],"Completed",QRTable[In Service Date],"<="&DATE(cumulativetable[[#This Row],[Year]],12,31),QRTable[In Service Date],">="&DATE(cumulativetable[[#This Row],[Year]]-1,1,1)) -> 0 | T29: =IF(cumulativetable[[#This Row],[Year]]>YEAR(TODAY()),NA(),IF(ISNUMBER(T28/1),R29+T28+S29,R29+S29)) -> 
A30: =IF(ROW()=18,'Host Organization Goals'!$A$8,A29+1) -> 2026 | B30: =SUMIFS(QRTable[Annual $ Savings],QRTable[Project Status],"<>Inactive",QRTable[Incentive Program],"<>*PES",QRTable[Incentive Program],"<>*DES",QRTable[Estimated Completion Date],"<="&DATE(cumulativetable[[#This Row],[Year]]-1,12,31)) -> 0 | C30: =-SUMIFS(QRTable[Project Cost],QRTable[Estimated Completion Date],"<="&DATE(cumulativetable[[#This Row],[Year]],12,31),QRTable[Estimated Completion Date],">="&DATE(cumulativetable[[#This Row],[Year]],1,1)) -> 0 | D30: =cumulativetable[[#This Row],[Scenario 1 Project Cost]]+cumulativetable[[#This Row],[Scenario 1 Savings]] -> 0 | E30: =cumulativetable[[#This Row],[Scenario 1 Project Cost]]+cumulativetable[[#This Row],[Scenario 1 Savings]]+cumulativetable[[#This Row],[Scenario 1 Incentive ]] -> 0 | F30: =SUMIFS(QRTable[Capital Incentive],QRTable[Project Status],"<>Inactive",QRTable[Estimated Completion Date],"<="&DATE(cumulativetable[[#This Row],[Year]]-1,12,31),QRTable[Estimated Completion Date],">="&DATE(cumulativetable[[#This Row],[Year]]-1,1,1)) -> 0 | G30: 0 | H30: 0 | I30: =IF(cumulativetable[[#This Row],[Year]]>'Executive Summary'!$O$4+'Executive Summary'!$O$11,NA(),cumulativetable[[#This Row],[Year]]) -> 2026 | J30: =IF(AND(H30>0,H29<0),cumulativetable[[#This Row],[Year]]-1,0) -> 0 | K30: =IF(cumulativetable[[#This Row],[Marker 1]]=MAX(cumulativetable[Marker 1]),cumulativetable[[#This Row],[Marker 1]],0) -> 0 | L30: =IF(cumulativetable[[#This Row],[Marker 2]]<>0,(ABS(H30)+ABS(H29))/12,0) -> 0 | M30: =IF(cumulativetable[[#This Row],[Marker 2]]<>0,ABS(H29)/cumulativetable[[#This Row],[Slope]],0)/10 -> 0 | N30: =IF(AND(G30>0,G29<0),cumulativetable[[#This Row],[Year]]-1,0) -> 0 | O30: =IF(cumulativetable[[#This Row],[w/o Incen A]]=MAX(cumulativetable[w/o Incen A]),cumulativetable[[#This Row],[w/o Incen A]],0) -> 0 | P30: =IF(cumulativetable[[#This Row],[B]]<>0,(ABS(G30)+ABS(G29))/12,0) -> 0 | Q30: =IF(cumulativetable[[#This Row],[B]]<>0,ABS(G29)/cumulativetable[[#This Row],[C]],0)/10 -> 0 | R30: =SUMIFS(QRTable[Annual $ Savings],QRTable[Project Status],"Completed",QRTable[Incentive Program],"<>*PES",QRTable[Incentive Program],"<>*DES",QRTable[Incentive Program],"<>Audit*",QRTable[In Service Date],"<="&DATE(cumulativetable[[#This Row],[Year]]-1,12,31)) -> 0 | S30: =-SUMIFS(QRTable[Project Cost],QRTable[In Service Date],"<="&DATE(cumulativetable[[#This Row],[Year]],12,31),QRTable[In Service Date],">="&DATE(cumulativetable[[#This Row],[Year]],1,1))+SUMIFS(QRTable[Capital Incentive],QRTable[Project Status],"Completed",QRTable[In Service Date],"<="&DATE(cumulativetable[[#This Row],[Year]],12,31),QRTable[In Service Date],">="&DATE(cumulativetable[[#This Row],[Year]]-1,1,1)) -> 0 | T30: =IF(cumulativetable[[#This Row],[Year]]>YEAR(TODAY()),NA(),IF(ISNUMBER(T29/1),R30+T29+S30,R30+S30)) -> 
A31: =IF(ROW()=18,'Host Organization Goals'!$A$8,A30+1) -> 2027 | B31: =SUMIFS(QRTable[Annual $ Savings],QRTable[Project Status],"<>Inactive",QRTable[Incentive Program],"<>*PES",QRTable[Incentive Program],"<>*DES",QRTable[Estimated Completion Date],"<="&DATE(cumulativetable[[#This Row],[Year]]-1,12,31)) -> 0 | C31: =-SUMIFS(QRTable[Project Cost],QRTable[Estimated Completion Date],"<="&DATE(cumulativetable[[#This Row],[Year]],12,31),QRTable[Estimated Completion Date],">="&DATE(cumulativetable[[#This Row],[Year]],1,1)) -> 0 | D31: =cumulativetable[[#This Row],[Scenario 1 Project Cost]]+cumulativetable[[#This Row],[Scenario 1 Savings]] -> 0 | E31: =cumulativetable[[#This Row],[Scenario 1 Project Cost]]+cumulativetable[[#This Row],[Scenario 1 Savings]]+cumulativetable[[#This Row],[Scenario 1 Incentive ]] -> 0 | F31: =SUMIFS(QRTable[Capital Incentive],QRTable[Project Status],"<>Inactive",QRTable[Estimated Completion Date],"<="&DATE(cumulativetable[[#This Row],[Year]]-1,12,31),QRTable[Estimated Completion Date],">="&DATE(cumulativetable[[#This Row],[Year]]-1,1,1)) -> 0 | G31: 0 | H31: 0 | I31: =IF(cumulativetable[[#This Row],[Year]]>'Executive Summary'!$O$4+'Executive Summary'!$O$11,NA(),cumulativetable[[#This Row],[Year]]) ->  | J31: =IF(AND(H31>0,H30<0),cumulativetable[[#This Row],[Year]]-1,0) -> 0 | K31: =IF(cumulativetable[[#This Row],[Marker 1]]=MAX(cumulativetable[Marker 1]),cumulativetable[[#This Row],[Marker 1]],0) -> 0 | L31: =IF(cumulativetable[[#This Row],[Marker 2]]<>0,(ABS(H31)+ABS(H30))/12,0) -> 0 | M31: =IF(cumulativetable[[#This Row],[Marker 2]]<>0,ABS(H30)/cumulativetable[[#This Row],[Slope]],0)/10 -> 0 | N31: =IF(AND(G31>0,G30<0),cumulativetable[[#This Row],[Year]]-1,0) -> 0 | O31: =IF(cumulativetable[[#This Row],[w/o Incen A]]=MAX(cumulativetable[w/o Incen A]),cumulativetable[[#This Row],[w/o Incen A]],0) -> 0 | P31: =IF(cumulativetable[[#This Row],[B]]<>0,(ABS(G31)+ABS(G30))/12,0) -> 0 | Q31: =IF(cumulativetable[[#This Row],[B]]<>0,ABS(G30)/cumulativetable[[#This Row],[C]],0)/10 -> 0 | R31: =SUMIFS(QRTable[Annual $ Savings],QRTable[Project Status],"Completed",QRTable[Incentive Program],"<>*PES",QRTable[Incentive Program],"<>*DES",QRTable[Incentive Program],"<>Audit*",QRTable[In Service Date],"<="&DATE(cumulativetable[[#This Row],[Year]]-1,12,31)) -> 0 | S31: =-SUMIFS(QRTable[Project Cost],QRTable[In Service Date],"<="&DATE(cumulativetable[[#This Row],[Year]],12,31),QRTable[In Service Date],">="&DATE(cumulativetable[[#This Row],[Year]],1,1))+SUMIFS(QRTable[Capital Incentive],QRTable[Project Status],"Completed",QRTable[In Service Date],"<="&DATE(cumulativetable[[#This Row],[Year]],12,31),QRTable[In Service Date],">="&DATE(cumulativetable[[#This Row],[Year]]-1,1,1)) -> 0 | T31: =IF(cumulativetable[[#This Row],[Year]]>YEAR(TODAY()),NA(),IF(ISNUMBER(T30/1),R31+T30+S31,R31+S31)) -> 
A32: =IF(ROW()=18,'Host Organization Goals'!$A$8,A31+1) -> 2028 | B32: =SUMIFS(QRTable[Annual $ Savings],QRTable[Project Status],"<>Inactive",QRTable[Incentive Program],"<>*PES",QRTable[Incentive Program],"<>*DES",QRTable[Estimated Completion Date],"<="&DATE(cumulativetable[[#This Row],[Year]]-1,12,31)) -> 0 | C32: =-SUMIFS(QRTable[Project Cost],QRTable[Estimated Completion Date],"<="&DATE(cumulativetable[[#This Row],[Year]],12,31),QRTable[Estimated Completion Date],">="&DATE(cumulativetable[[#This Row],[Year]],1,1)) -> 0 | D32: =cumulativetable[[#This Row],[Scenario 1 Project Cost]]+cumulativetable[[#This Row],[Scenario 1 Savings]] -> 0 | E32: =cumulativetable[[#This Row],[Scenario 1 Project Cost]]+cumulativetable[[#This Row],[Scenario 1 Savings]]+cumulativetable[[#This Row],[Scenario 1 Incentive ]] -> 0 | F32: =SUMIFS(QRTable[Capital Incentive],QRTable[Project Status],"<>Inactive",QRTable[Estimated Completion Date],"<="&DATE(cumulativetable[[#This Row],[Year]]-1,12,31),QRTable[Estimated Completion Date],">="&DATE(cumulativetable[[#This Row],[Year]]-1,1,1)) -> 0 | G32: =IF(ISNUMBER(G31/1),B32+G31+C32,B32+C32) -> 0 | H32: =IF(ISNUMBER(H31/1),B32+H31+C32+F32,B32+C32+F32) -> 0 | I32: =IF(cumulativetable[[#This Row],[Year]]>'Executive Summary'!$O$4+'Executive Summary'!$O$11,NA(),cumulativetable[[#This Row],[Year]]) ->  | J32: =IF(AND(H32>0,H31<0),cumulativetable[[#This Row],[Year]]-1,0) -> 0 | K32: =IF(cumulativetable[[#This Row],[Marker 1]]=MAX(cumulativetable[Marker 1]),cumulativetable[[#This Row],[Marker 1]],0) -> 0 | L32: =IF(cumulativetable[[#This Row],[Marker 2]]<>0,(ABS(H32)+ABS(H31))/12,0) -> 0 | M32: =IF(cumulativetable[[#This Row],[Marker 2]]<>0,ABS(H31)/cumulativetable[[#This Row],[Slope]],0)/10 -> 0 | N32: =IF(AND(G32>0,G31<0),cumulativetable[[#This Row],[Year]]-1,0) -> 0 | O32: =IF(cumulativetable[[#This Row],[w/o Incen A]]=MAX(cumulativetable[w/o Incen A]),cumulativetable[[#This Row],[w/o Incen A]],0) -> 0 | P32: =IF(cumulativetable[[#This Row],[B]]<>0,(ABS(G32)+ABS(G31))/12,0) -> 0 | Q32: =IF(cumulativetable[[#This Row],[B]]<>0,ABS(G31)/cumulativetable[[#This Row],[C]],0)/10 -> 0 | R32: =SUMIFS(QRTable[Annual $ Savings],QRTable[Project Status],"Completed",QRTable[Incentive Program],"<>*PES",QRTable[Incentive Program],"<>*DES",QRTable[Incentive Program],"<>Audit*",QRTable[In Service Date],"<="&DATE(cumulativetable[[#This Row],[Year]]-1,12,31)) -> 0 | S32: =-SUMIFS(QRTable[Project Cost],QRTable[In Service Date],"<="&DATE(cumulativetable[[#This Row],[Year]],12,31),QRTable[In Service Date],">="&DATE(cumulativetable[[#This Row],[Year]],1,1))+SUMIFS(QRTable[Capital Incentive],QRTable[Project Status],"Completed",QRTable[In Service Date],"<="&DATE(cumulativetable[[#This Row],[Year]],12,31),QRTable[In Service Date],">="&DATE(cumulativetable[[#This Row],[Year]]-1,1,1)) -> 0 | T32: =IF(cumulativetable[[#This Row],[Year]]>YEAR(TODAY()),NA(),IF(ISNUMBER(T31/1),R32+T31+S32,R32+S32)) -> 
A33: =IF(ROW()=18,'Host Organization Goals'!$A$8,A32+1) -> 2029 | B33: =SUMIFS(QRTable[Annual $ Savings],QRTable[Project Status],"<>Inactive",QRTable[Incentive Program],"<>*PES",QRTable[Incentive Program],"<>*DES",QRTable[Estimated Completion Date],"<="&DATE(cumulativetable[[#This Row],[Year]]-1,12,31)) -> 0 | C33: =-SUMIFS(QRTable[Project Cost],QRTable[Estimated Completion Date],"<="&DATE(cumulativetable[[#This Row],[Year]],12,31),QRTable[Estimated Completion Date],">="&DATE(cumulativetable[[#This Row],[Year]],1,1)) -> 0 | D33: =cumulativetable[[#This Row],[Scenario 1 Project Cost]]+cumulativetable[[#This Row],[Scenario 1 Savings]] -> 0 | E33: =cumulativetable[[#This Row],[Scenario 1 Project Cost]]+cumulativetable[[#This Row],[Scenario 1 Savings]]+cumulativetable[[#This Row],[Scenario 1 Incentive ]] -> 0 | F33: =SUMIFS(QRTable[Capital Incentive],QRTable[Project Status],"<>Inactive",QRTable[Estimated Completion Date],"<="&DATE(cumulativetable[[#This Row],[Year]]-1,12,31),QRTable[Estimated Completion Date],">="&DATE(cumulativetable[[#This Row],[Year]]-1,1,1)) -> 0 | G33: =IF(ISNUMBER(G32/1),B33+G32+C33,B33+C33) -> 0 | H33: =IF(ISNUMBER(H32/1),B33+H32+C33+F33,B33+C33+F33) -> 0 | I33: =IF(cumulativetable[[#This Row],[Year]]>'Executive Summary'!$O$4+'Executive Summary'!$O$11,NA(),cumulativetable[[#This Row],[Year]]) ->  | J33: =IF(AND(H33>0,H32<0),cumulativetable[[#This Row],[Year]]-1,0) -> 0 | K33: =IF(cumulativetable[[#This Row],[Marker 1]]=MAX(cumulativetable[Marker 1]),cumulativetable[[#This Row],[Marker 1]],0) -> 0 | L33: =IF(cumulativetable[[#This Row],[Marker 2]]<>0,(ABS(H33)+ABS(H32))/12,0) -> 0 | M33: =IF(cumulativetable[[#This Row],[Marker 2]]<>0,ABS(H32)/cumulativetable[[#This Row],[Slope]],0)/10 -> 0 | N33: =IF(AND(G33>0,G32<0),cumulativetable[[#This Row],[Year]]-1,0) -> 0 | O33: =IF(cumulativetable[[#This Row],[w/o Incen A]]=MAX(cumulativetable[w/o Incen A]),cumulativetable[[#This Row],[w/o Incen A]],0) -> 0 | P33: =IF(cumulativetable[[#This Row],[B]]<>0,(ABS(G33)+ABS(G32))/12,0) -> 0 | Q33: =IF(cumulativetable[[#This Row],[B]]<>0,ABS(G32)/cumulativetable[[#This Row],[C]],0)/10 -> 0 | R33: =SUMIFS(QRTable[Annual $ Savings],QRTable[Project Status],"Completed",QRTable[Incentive Program],"<>*PES",QRTable[Incentive Program],"<>*DES",QRTable[Incentive Program],"<>Audit*",QRTable[In Service Date],"<="&DATE(cumulativetable[[#This Row],[Year]]-1,12,31)) -> 0 | S33: =-SUMIFS(QRTable[Project Cost],QRTable[In Service Date],"<="&DATE(cumulativetable[[#This Row],[Year]],12,31),QRTable[In Service Date],">="&DATE(cumulativetable[[#This Row],[Year]],1,1))+SUMIFS(QRTable[Capital Incentive],QRTable[Project Status],"Completed",QRTable[In Service Date],"<="&DATE(cumulativetable[[#This Row],[Year]],12,31),QRTable[In Service Date],">="&DATE(cumulativetable[[#This Row],[Year]]-1,1,1)) -> 0 | T33: =IF(cumulativetable[[#This Row],[Year]]>YEAR(TODAY()),NA(),IF(ISNUMBER(T32/1),R33+T32+S33,R33+S33)) -> 
B36: Scenario 1: Only completed projects | E36: Return w/o Incentive is | F36: =SUM(cumulativetable[B],cumulativetable[D]) -> 0 | G36: =IF(ISERROR(TEXT(DATE(INT(F36),(INT((F36-INT(F36))*12)),1),"mmmm, yyyy")),"N/A",TEXT(DATE(INT(F36),(INT((F36-INT(F36))*12)),1),"mmmm, yyyy")) -> N/A
B37: Scenario 2: All projects except inactive | E37: Return w/ Incentive is | F37: =SUM(cumulativetable[Marker 2],cumulativetable[Column1]) -> 0 | G37: =IF(ISERROR(TEXT(DATE(INT(F37),(INT((F37-INT(F37))*12)),1),"mmmm, yyyy")),"N/A",TEXT(DATE(INT(F37),(INT((F37-INT(F37))*12)),1),"mmmm, yyyy")) -> N/A
B38: Average rate of return
B39: Sum of Project Costs (Non-Incented) | C39: =SUMIFS(QRTable[Project Cost],QRTable[Incentive Type],"Non-Incented",QRTable[Project Status],"Completed") -> 0 | D39: Sum of $ Saved (Non-Incented) | E39: =SUMIFS(QRTable[Annual $ Savings],QRTable[Incentive Type],"Non-Incented",QRTable[Project Status],"Completed") -> 0 | H39: Non-Incented Simple Payback | I39: =IFERROR(C39/E39,"") -> 
B40: Sum of Project Costs (Total) | C40: =SUMIFS(QRTable[Project Cost],QRTable[Project Status],"Completed") -> 0 | D40: Sum of $ Saved (Total) | E40: =SUMIFS(QRTable[Annual $ Savings],QRTable[Project Status],"Completed") -> 0 | F40: NPV | G40: =NPV(Goals!$K$16*(1+Goals!$K$17),NPVRange) -> 0 | H40: Total Simple Payback | I40: =IFERROR(C40/E40,"") -> 
B41: Sum of Incentive (Completed) | C41: =SUMIFS(QRTable[Capital Incentive],QRTable[Project Status],"Completed") -> 0 | F41: ROI | G41: =IFERROR(H27/(-SUM(C18:C27)),"") ->  | H41: Payback w/ Incentive | I41: =IFERROR((C40-C41)/E40,"") -> 
F42: MIRR w/o Incen for chosen yrs | G42: =IF(ISERROR(MIRR(MIRRNoIncenRange,Goals!$K$18,Goals!$K$19)),"N/A",MIRR(MIRRNoIncenRange,Goals!$K$18,Goals!$K$19)) -> N/A | H42: MIRR w/o Incen | I42: =IFERROR(MIRR(MIRRNoIncenRange,Goals!$K$18,Goals!$K$19),"") -> 
F43: MIRR w/ Incen for chosen yrs | G43: =IF(ISERROR(MIRR(MIRRIncenRange,Goals!$K$18,Goals!$K$19)),"N/A",MIRR(MIRRIncenRange,Goals!$K$18,Goals!$K$19)) -> N/A | H43: MIRR | I43: =IFERROR(MIRR(MIRRIncenRange,Goals!$K$18,Goals!$K$19),"") -> 
F44: IRR | G44: =IF(ISERROR(IRR(MIRRIncenRange)),"N/A",IRR(MIRRIncenRange)) -> N/A | H44: Target Interest rate | I44: ='Executive Summary'!$O$10 -> 0.12
B45: Year of Term 1 | C45: =YEAR('General Input'!$C$19) -> 2016
A47: Top 5 Largest Projects
B48: Project Title | C48: MWh Savings | D48: Dollars Saved | E48: Project Cost | F48: Incentive | G48: Status
A49: 1 | B49: =IFERROR(INDEX(QRTable[Project Title],MATCH(LARGE(IF(QRTable[Project Status]="Completed",QRTable[Actual Electricity Savings (MWh)]),$A49),QRTable[Actual Electricity Savings (MWh)],0)),"") ->  | C49: =IFERROR(INDEX(QRTable[Actual Electricity Savings (MWh)],MATCH(LARGE(IF(QRTable[Project Status]="Completed",QRTable[Actual Electricity Savings (MWh)]),$A49),QRTable[Estimated Electricity Savings (MWh)],0)),"") ->  | D49: =IFERROR(INDEX(QRTable[Annual $ Savings],MATCH(LARGE(IF(QRTable[Project Status]="Completed",QRTable[Estimated Electricity Savings (MWh)]),$A49),QRTable[Estimated Electricity Savings (MWh)],0)),"") ->  | E49: =IFERROR(INDEX(QRTable[Project Cost],MATCH(LARGE(IF(QRTable[Project Status]="Completed",QRTable[Estimated Electricity Savings (MWh)]),$A49),QRTable[Estimated Electricity Savings (MWh)],0)),"") ->  | F49: =IFERROR(INDEX(QRTable[Capital Incentive],MATCH(LARGE(IF(QRTable[Project Status]="Completed",QRTable[Estimated Electricity Savings (MWh)]),$A49),QRTable[Estimated Electricity Savings (MWh)],0)),"") ->  | G49: =IFERROR(INDEX(QRTable[Project Status],MATCH(LARGE(IF(QRTable[Project Status]="Completed",QRTable[Estimated Electricity Savings (MWh)]),$A49),QRTable[Estimated Electricity Savings (MWh)],0)),"") -> 
A50: 2 | B50: =IFERROR(INDEX(QRTable[Project Title],MATCH(LARGE(IF(QRTable[Project Status]="Completed",QRTable[Actual Electricity Savings (MWh)]),$A50),QRTable[Actual Electricity Savings (MWh)],0)),"") ->  | C50: =IFERROR(INDEX(QRTable[Actual Electricity Savings (MWh)],MATCH(LARGE(IF(QRTable[Project Status]="Completed",QRTable[Actual Electricity Savings (MWh)]),$A50),QRTable[Estimated Electricity Savings (MWh)],0)),"") ->  | D50: =IFERROR(INDEX(QRTable[Annual $ Savings],MATCH(LARGE(IF(QRTable[Project Status]="Completed",QRTable[Estimated Electricity Savings (MWh)]),$A50),QRTable[Estimated Electricity Savings (MWh)],0)),"") ->  | E50: =IFERROR(INDEX(QRTable[Project Cost],MATCH(LARGE(IF(QRTable[Project Status]="Completed",QRTable[Estimated Electricity Savings (MWh)]),$A50),QRTable[Estimated Electricity Savings (MWh)],0)),"") ->  | F50: =IFERROR(INDEX(QRTable[Capital Incentive],MATCH(LARGE(IF(QRTable[Project Status]="Completed",QRTable[Estimated Electricity Savings (MWh)]),$A50),QRTable[Estimated Electricity Savings (MWh)],0)),"") ->  | G50: =IFERROR(INDEX(QRTable[Project Status],MATCH(LARGE(IF(QRTable[Project Status]="Completed",QRTable[Estimated Electricity Savings (MWh)]),$A50),QRTable[Estimated Electricity Savings (MWh)],0)),"") -> 
A51: 3 | B51: =IFERROR(INDEX(QRTable[Project Title],MATCH(LARGE(IF(QRTable[Project Status]="Completed",QRTable[Actual Electricity Savings (MWh)]),$A51),QRTable[Actual Electricity Savings (MWh)],0)),"") ->  | C51: =IFERROR(INDEX(QRTable[Actual Electricity Savings (MWh)],MATCH(LARGE(IF(QRTable[Project Status]="Completed",QRTable[Actual Electricity Savings (MWh)]),$A51),QRTable[Estimated Electricity Savings (MWh)],0)),"") ->  | D51: =IFERROR(INDEX(QRTable[Annual $ Savings],MATCH(LARGE(IF(QRTable[Project Status]="Completed",QRTable[Estimated Electricity Savings (MWh)]),$A51),QRTable[Estimated Electricity Savings (MWh)],0)),"") ->  | E51: =IFERROR(INDEX(QRTable[Project Cost],MATCH(LARGE(IF(QRTable[Project Status]="Completed",QRTable[Estimated Electricity Savings (MWh)]),$A51),QRTable[Estimated Electricity Savings (MWh)],0)),"") ->  | F51: =IFERROR(INDEX(QRTable[Capital Incentive],MATCH(LARGE(IF(QRTable[Project Status]="Completed",QRTable[Estimated Electricity Savings (MWh)]),$A51),QRTable[Estimated Electricity Savings (MWh)],0)),"") ->  | G51: =IFERROR(INDEX(QRTable[Project Status],MATCH(LARGE(IF(QRTable[Project Status]="Completed",QRTable[Estimated Electricity Savings (MWh)]),$A51),QRTable[Estimated Electricity Savings (MWh)],0)),"") -> 
A52: 4 | B52: =IFERROR(INDEX(QRTable[Project Title],MATCH(LARGE(IF(QRTable[Project Status]="Completed",QRTable[Actual Electricity Savings (MWh)]),$A52),QRTable[Actual Electricity Savings (MWh)],0)),"") ->  | C52: =IFERROR(INDEX(QRTable[Actual Electricity Savings (MWh)],MATCH(LARGE(IF(QRTable[Project Status]="Completed",QRTable[Actual Electricity Savings (MWh)]),$A52),QRTable[Estimated Electricity Savings (MWh)],0)),"") ->  | D52: =IFERROR(INDEX(QRTable[Annual $ Savings],MATCH(LARGE(IF(QRTable[Project Status]="Completed",QRTable[Estimated Electricity Savings (MWh)]),$A52),QRTable[Estimated Electricity Savings (MWh)],0)),"") ->  | E52: =IFERROR(INDEX(QRTable[Project Cost],MATCH(LARGE(IF(QRTable[Project Status]="Completed",QRTable[Estimated Electricity Savings (MWh)]),$A52),QRTable[Estimated Electricity Savings (MWh)],0)),"") ->  | F52: =IFERROR(INDEX(QRTable[Capital Incentive],MATCH(LARGE(IF(QRTable[Project Status]="Completed",QRTable[Estimated Electricity Savings (MWh)]),$A52),QRTable[Estimated Electricity Savings (MWh)],0)),"") ->  | G52: =IFERROR(INDEX(QRTable[Project Status],MATCH(LARGE(IF(QRTable[Project Status]="Completed",QRTable[Estimated Electricity Savings (MWh)]),$A52),QRTable[Estimated Electricity Savings (MWh)],0)),"") -> 
A53: 5 | B53: =IFERROR(INDEX(QRTable[Project Title],MATCH(LARGE(IF(QRTable[Project Status]="Completed",QRTable[Actual Electricity Savings (MWh)]),$A53),QRTable[Actual Electricity Savings (MWh)],0)),"") ->  | C53: =IFERROR(INDEX(QRTable[Actual Electricity Savings (MWh)],MATCH(LARGE(IF(QRTable[Project Status]="Completed",QRTable[Actual Electricity Savings (MWh)]),$A53),QRTable[Estimated Electricity Savings (MWh)],0)),"") ->  | D53: =IFERROR(INDEX(QRTable[Annual $ Savings],MATCH(LARGE(IF(QRTable[Project Status]="Completed",QRTable[Estimated Electricity Savings (MWh)]),$A53),QRTable[Estimated Electricity Savings (MWh)],0)),"") ->  | E53: =IFERROR(INDEX(QRTable[Project Cost],MATCH(LARGE(IF(QRTable[Project Status]="Completed",QRTable[Estimated Electricity Savings (MWh)]),$A53),QRTable[Estimated Electricity Savings (MWh)],0)),"") ->  | F53: =IFERROR(INDEX(QRTable[Capital Incentive],MATCH(LARGE(IF(QRTable[Project Status]="Completed",QRTable[Estimated Electricity Savings (MWh)]),$A53),QRTable[Estimated Electricity Savings (MWh)],0)),"") ->  | G53: =IFERROR(INDEX(QRTable[Project Status],MATCH(LARGE(IF(QRTable[Project Status]="Completed",QRTable[Estimated Electricity Savings (MWh)]),$A53),QRTable[Estimated Electricity Savings (MWh)],0)),"") -> 
A55: Top 5 Largest Pipeline Projects
B56: Project Title | C56: MWh Savings | D56: Dollars Saved | E56: Project Cost | F56: Incentive | G56: Status
A57: 1 | B57: =IFERROR(INDEX(QRTable[Project Title],MATCH(LARGE(IF(QRTable[Project Status]<>"Completed",QRTable[Estimated Electricity Savings (MWh)]),$A57),QRTable[Estimated Electricity Savings (MWh)],0)),"") ->  | C57: =IFERROR(INDEX(QRTable[Estimated Electricity Savings (MWh)],MATCH(LARGE(IF(QRTable[Project Status]<>"Completed",QRTable[Estimated Electricity Savings (MWh)]),$A57),QRTable[Estimated Electricity Savings (MWh)],0)),"") ->  | D57: =IFERROR(INDEX(QRTable[Annual $ Savings],MATCH(LARGE(IF(QRTable[Project Status]<>"Completed",QRTable[Estimated Electricity Savings (MWh)]),$A57),QRTable[Estimated Electricity Savings (MWh)],0)),"") ->  | E57: =IFERROR(INDEX(QRTable[Project Cost],MATCH(LARGE(IF(QRTable[Project Status]<>"Completed",QRTable[Estimated Electricity Savings (MWh)]),$A57),QRTable[Estimated Electricity Savings (MWh)],0)),"") ->  | F57: =IFERROR(INDEX(QRTable[Capital Incentive],MATCH(LARGE(IF(QRTable[Project Status]<>"Completed",QRTable[Estimated Electricity Savings (MWh)]),$A57),QRTable[Estimated Electricity Savings (MWh)],0)),"") ->  | G57: =IFERROR(INDEX(QRTable[Project Status],MATCH(LARGE(IF(QRTable[Project Status]<>"Completed",QRTable[Estimated Electricity Savings (MWh)]),$A57),QRTable[Estimated Electricity Savings (MWh)],0)),"") -> 
A58: 2 | B58: =IFERROR(INDEX(QRTable[Project Title],MATCH(LARGE(IF(QRTable[Project Status]<>"Completed",QRTable[Estimated Electricity Savings (MWh)]),$A58),QRTable[Estimated Electricity Savings (MWh)],0)),"") ->  | C58: =IFERROR(INDEX(QRTable[Estimated Electricity Savings (MWh)],MATCH(LARGE(IF(QRTable[Project Status]<>"Completed",QRTable[Estimated Electricity Savings (MWh)]),$A58),QRTable[Estimated Electricity Savings (MWh)],0)),"") ->  | D58: =IFERROR(INDEX(QRTable[Annual $ Savings],MATCH(LARGE(IF(QRTable[Project Status]<>"Completed",QRTable[Estimated Electricity Savings (MWh)]),$A58),QRTable[Estimated Electricity Savings (MWh)],0)),"") ->  | E58: =IFERROR(INDEX(QRTable[Project Cost],MATCH(LARGE(IF(QRTable[Project Status]<>"Completed",QRTable[Estimated Electricity Savings (MWh)]),$A58),QRTable[Estimated Electricity Savings (MWh)],0)),"") ->  | F58: =IFERROR(INDEX(QRTable[Capital Incentive],MATCH(LARGE(IF(QRTable[Project Status]<>"Completed",QRTable[Estimated Electricity Savings (MWh)]),$A58),QRTable[Estimated Electricity Savings (MWh)],0)),"") ->  | G58: =IFERROR(INDEX(QRTable[Project Status],MATCH(LARGE(IF(QRTable[Project Status]<>"Completed",QRTable[Estimated Electricity Savings (MWh)]),$A58),QRTable[Estimated Electricity Savings (MWh)],0)),"") -> 
A59: 3 | B59: =IFERROR(INDEX(QRTable[Project Title],MATCH(LARGE(IF(QRTable[Project Status]<>"Completed",QRTable[Estimated Electricity Savings (MWh)]),$A59),QRTable[Estimated Electricity Savings (MWh)],0)),"") ->  | C59: =IFERROR(INDEX(QRTable[Estimated Electricity Savings (MWh)],MATCH(LARGE(IF(QRTable[Project Status]<>"Completed",QRTable[Estimated Electricity Savings (MWh)]),$A59),QRTable[Estimated Electricity Savings (MWh)],0)),"") ->  | D59: =IFERROR(INDEX(QRTable[Annual $ Savings],MATCH(LARGE(IF(QRTable[Project Status]<>"Completed",QRTable[Estimated Electricity Savings (MWh)]),$A59),QRTable[Estimated Electricity Savings (MWh)],0)),"") ->  | E59: =IFERROR(INDEX(QRTable[Project Cost],MATCH(LARGE(IF(QRTable[Project Status]<>"Completed",QRTable[Estimated Electricity Savings (MWh)]),$A59),QRTable[Estimated Electricity Savings (MWh)],0)),"") ->  | F59: =IFERROR(INDEX(QRTable[Capital Incentive],MATCH(LARGE(IF(QRTable[Project Status]<>"Completed",QRTable[Estimated Electricity Savings (MWh)]),$A59),QRTable[Estimated Electricity Savings (MWh)],0)),"") ->  | G59: =IFERROR(INDEX(QRTable[Project Status],MATCH(LARGE(IF(QRTable[Project Status]<>"Completed",QRTable[Estimated Electricity Savings (MWh)]),$A59),QRTable[Estimated Electricity Savings (MWh)],0)),"") -> 
A60: 4 | B60: =IFERROR(INDEX(QRTable[Project Title],MATCH(LARGE(IF(QRTable[Project Status]<>"Completed",QRTable[Estimated Electricity Savings (MWh)]),$A60),QRTable[Estimated Electricity Savings (MWh)],0)),"") ->  | C60: =IFERROR(INDEX(QRTable[Estimated Electricity Savings (MWh)],MATCH(LARGE(IF(QRTable[Project Status]<>"Completed",QRTable[Estimated Electricity Savings (MWh)]),$A60),QRTable[Estimated Electricity Savings (MWh)],0)),"") ->  | D60: =IFERROR(INDEX(QRTable[Annual $ Savings],MATCH(LARGE(IF(QRTable[Project Status]<>"Completed",QRTable[Estimated Electricity Savings (MWh)]),$A60),QRTable[Estimated Electricity Savings (MWh)],0)),"") ->  | E60: =IFERROR(INDEX(QRTable[Project Cost],MATCH(LARGE(IF(QRTable[Project Status]<>"Completed",QRTable[Estimated Electricity Savings (MWh)]),$A60),QRTable[Estimated Electricity Savings (MWh)],0)),"") ->  | F60: =IFERROR(INDEX(QRTable[Capital Incentive],MATCH(LARGE(IF(QRTable[Project Status]<>"Completed",QRTable[Estimated Electricity Savings (MWh)]),$A60),QRTable[Estimated Electricity Savings (MWh)],0)),"") ->  | G60: =IFERROR(INDEX(QRTable[Project Status],MATCH(LARGE(IF(QRTable[Project Status]<>"Completed",QRTable[Estimated Electricity Savings (MWh)]),$A60),QRTable[Estimated Electricity Savings (MWh)],0)),"") -> 
A61: 5 | B61: =IFERROR(INDEX(QRTable[Project Title],MATCH(LARGE(IF(QRTable[Project Status]<>"Completed",QRTable[Estimated Electricity Savings (MWh)]),$A61),QRTable[Estimated Electricity Savings (MWh)],0)),"") ->  | C61: =IFERROR(INDEX(QRTable[Estimated Electricity Savings (MWh)],MATCH(LARGE(IF(QRTable[Project Status]<>"Completed",QRTable[Estimated Electricity Savings (MWh)]),$A61),QRTable[Estimated Electricity Savings (MWh)],0)),"") ->  | D61: =IFERROR(INDEX(QRTable[Annual $ Savings],MATCH(LARGE(IF(QRTable[Project Status]<>"Completed",QRTable[Estimated Electricity Savings (MWh)]),$A61),QRTable[Estimated Electricity Savings (MWh)],0)),"") ->  | E61: =IFERROR(INDEX(QRTable[Project Cost],MATCH(LARGE(IF(QRTable[Project Status]<>"Completed",QRTable[Estimated Electricity Savings (MWh)]),$A61),QRTable[Estimated Electricity Savings (MWh)],0)),"") ->  | F61: =IFERROR(INDEX(QRTable[Capital Incentive],MATCH(LARGE(IF(QRTable[Project Status]<>"Completed",QRTable[Estimated Electricity Savings (MWh)]),$A61),QRTable[Estimated Electricity Savings (MWh)],0)),"") ->  | G61: =IFERROR(INDEX(QRTable[Project Status],MATCH(LARGE(IF(QRTable[Project Status]<>"Completed",QRTable[Estimated Electricity Savings (MWh)]),$A61),QRTable[Estimated Electricity Savings (MWh)],0)),"") -> 

Sheet Non-Incented Template
A1: Program Enabled Savings Claim Template – Project
A2: *Copy this table to columns to the right to expand
A3: Project Contact (name) | B3: Insert name
A4: Project Location – Address | B4: Insert address.
A5: Phone No. | B5: xxx-xxx-xxxx
A6: Email Address | B6: name@company.com
A7: Describe the Project | B7: Provide details on the proposed or implemented change in equipment or change in operating practice and why it is an energy efficiency improvement.
A8: Details on the Baseline Condition | B8: Provide details on the base case equipment or the base case operating practice.
A9: Details on the Energy Efficient Condition | B9: Provide details on the energy efficient equipment or energy efficient change in operating practice.
A10: Annual kW Savings Estimate | B10: kW
A11: Annual kWh Savings Estimate | B11: kWh
A12: Expected Useful Life of the Energy Efficient Condition | B12: years
A13: Estimate of Project Costs | B13: $ xx.xx.
A14: Project Completion Date | B14: Click here to enter a date.
A15: Operating Schedules | B15: Describe the typical weekday, weekend, and holiday schedules. A table will be sufficient.
A16: Description of the Influence of saveONenergy had on the development and implementation of the project(s) | B16: Describe the marketing, outreach, or any other energy management activity that had a direct influence on the initiation, approval and/or completion etc. of the project. Be as detailed as possible. Provide evidence of the influence. (Emails, logs, meeting minutes, audit reports, participant statements)
A17: Attach all supporting documentation (assumptions, calculations, meter data, M&V reports)

Sheet DropDownLists (hidden)
A1: Performance Based
A2: Salary Based | B2: 1 | C2: Incented | H2: 1
B3: 2 | C3: Non-Incented | E3: Completed | H3: 2
A4: Single | B4: 3 | E4: Underway | H4: 3
A5: Multi-Site | B5: 4 | E5: Investigation Stage | H5: 4
E6: Inactive
E10: Yes | J10: Non-Incented
A11: Upgrade | B11: Behavioural | E11: No | J11: Demand Response
A12: Optimization | B12: Compressed Air | J12: Retrofit Program
A13: Conservation | B13: Demand Response | J13: Retrofit - Custom
A14: Controls | B14: Electrochemical | J14: Retrofit - Engineered
A15: O&M and Behavioural | B15: Fans/Blowers | J15: Retrofit - Prescriptive
A16: Other | B16: CCHP | J16: Audit Funding
A17: Generation | B17: WER | J17: High Performance New Construction
A18: Process or Building Re-Design | B18: Renewable | J18: Existing Building Commissioning
B19: HVAC | J19: Process and Systems - PES
B20: Lighting | J20: Process and Systems - DES
B21: Motors (other) | J21: Process and Systems - SCP
B22: Other | J22: Process and Systems - Project
B23: Process Cooling | J23: FIT/mFIT
B24: Process Heating | J24: Monitoring & Targeting
B25: Process Specific | J25: Other
B26: Pumps

Sheet Revision Note (hidden)
A1: Rev | B1: Note | C1: Date
A2: 0 | B2: • Completion Date column has a conditional formatting with red font or background when: o Completion date is past today yet status is Complete o Completion date is prior to today’s date while the status is NOT Complete o Completion date is earlier than EM start date o MWh is greater than 10,000 MWh as a warning o MWh or kW value is NOT a numeric value (i.e. actually typing in ‘500 MWh’ will flag it) • Guide comments per column changed to text box, such that it extends/shrinks with the column width. Prior to this, comment box remained in the same place regardless of what happened. • Changed the ‘Example’ columns to ‘Additional’ columns with added description ‘EMs may include, but will not be imported into the database’ • Added ‘Retrofit – Program’ under Application Type column to prevent compatibility issues with old templates | C2: 2014-09-05
A3: 0.1 | B3: More conditional formatting added for 'Completed' status without a date ID column added to keep track of projects Revision note tab added | C3: 2014-10-16
A4: 0.2 | B4: Technical Reviewer comment column added | C4: 2014-10-22
A5: 1 | B5: Revised the version date in the intro sheet | C5: 2014-10-31
A6: 1.1 | B6: Revised a spelling error in the definition tab Revision Note tab hidden Application Type 'Retrofit - Program' revised to 'Retrofit Program' | C6: 2014-11-07
A7: 2 | B7: Several changes over the year • Colour theme update • Executive Summary added • LDC name convention updated • Footer revised to reflect IESO • EM Employment Start date option added | C7: 2015-08-19

Sheet LDCs (hidden)
A1: LDCs
A2: Algoma Power Inc.
A3: Atikokan Hydro Inc.
A4: Attawapiskat First Nation
A5: Attawapiskat Power Corporation
A6: Bluewater Power Distribution Corporation
A7: Brantford Power Inc.
A8: Burlington Hydro Inc.
A9: Canadian Niagara Power Inc.
A10: Centre Wellington Hydro Ltd.
A11: Chapleau Public Utilities Corporation
A12: COLLUS PowerStream Corp.
A13: Cooperative Hydro Embrun Inc.
A14: Cornwall Street Railway Light and Power Company Limited
A15: Dubreuil Lumber Inc.
A16: E.L.K. Energy Inc.
A17: Energy+ Inc.
A18: Enersource Hydro Mississauga Inc.
A19: Entegrus Powerlines Inc.
A20: EnWin Utilities Ltd.
A21: Erie Thames Powerlines Corporation
A22: Espanola Regional Hydro Distribution Corporation
A23: Essex Powerlines Corporation
A24: Festival Hydro Inc.
A25: Fort Albany First Nation
A26: Fort Albany Power Corporation
A27: Fort Frances Power Corporation
A28: Greater Sudbury Hydro Inc.
A29: Grimsby Power Inc.
A30: Guelph Hydro Electric Systems Inc.
A31: Haldimand County Hydro Inc.
A32: Halton Hills Hydro Inc.
A33: Hearst Power Distribution Company Limited
A34: Horizon Utilities Corporation
A35: Hydro 2000 Inc.
A36: Hydro Hawkesbury Inc.
A37: Hydro One Brampton Networks Inc.
A38: Hydro One Networks Inc.
A39: Hydro Ottawa Limited
A40: IESO
A41: Innpower Corporation
A42: Kashechewan First Nation
A43: Kashechewan Power Corporation
A44: Kenora Hydro Electric Corporation Ltd.
A45: Kingston Hydro Corporation
A46: Kitchener-Wilmot Hydro Inc.
A47: Lakefront Utilities Inc.
A48: Lakeland Power Distribution Ltd.
A49: London Hydro Inc.
A50: Midland Power Utility Corporation
A51: Milton Hydro Distribution Inc.
A52: Newmarket-Tay Power Distribution Ltd.
A53: Niagara Peninsula Energy Inc.
A54: Niagara-on-the-Lake Hydro Inc.
A55: North Bay Hydro Distribution Limited
A56: Northern Ontario Wires Inc.
A57: Oakville Hydro Electricity Distribution Inc.
A58: Orangeville Hydro Limited
A59: Orillia Power Distribution Corporation
A60: Oshawa PUC Networks Inc.
A61: Ottawa River Power Corporation
A62: Peterborough Distribution Incorporated
A63: PowerStream Inc.
A64: PUC Distribution Inc.
A65: Renfrew Hydro Inc.
A66: Rideau St. Lawrence Distribution Inc.
A67: Sioux Lookout Hydro Inc.
A68: St. Thomas Energy Inc.
A69: Thunder Bay Hydro Electricity Distribution Inc.
A70: Tillsonburg Hydro Inc.
A71: Toronto Hydro-Electric System Limited
A72: Veridian Connections Inc.
A73: Wasaga Distribution Inc.
A74: Waterloo North Hydro Inc.
A75: Welland Hydro-Electric System Corp.
A76: Wellington North Power Inc.
A77: West Coast Huron Energy Inc.
A78: Westario Power Inc.
A79: Whitby Hydro Electric Corporation
A80: Woodstock Hydro Services Inc.

Sheet Input Data (hidden)
A1: ENERGY MANAGER EXECUTIVE SUMMARY INPUT FORM
A2: Disclaimer: Executive Summary results are based on information entered into the Quarterly Report and the Executive Summary input tab, and are subject to all limitations, assumptions, and qualifications contained herein. In addition, financial or other projections contained herein are based upon assumptions and entries made by the Energy Manager.
B4: Input cells | C4: Calculated values
B6: Blended Electricity Rate ($/MWh) | C6: 100 | E6: Type of Facility Load: | F6: Fixed | H6: Display Equivalent Unit/Production | J6: No
E7: Annual Facility Load: | F7: 85000 | H7: Production Unit | J7: Units
B8: Display Charts from | C8: Input Year | E8: Type of Internal Target: | F8: Custom Target | H8: =IF(J7="Enter Unit","Marginal Profit per …","Marginal Profit per "&J7) -> Marginal Profit per Units | J8: 2500
B9: Input Year | C9: 2015 | H9: Opportunity Cost of Capital | J9: 0.12
B10: Year | C10: =IF($C$8="EM Start Year",YEAR('General Input'!$C$19),$C$9) -> 2015 | E10: % of Facility Load | F10: 0.025 | H10: Number of Years - Cash Flow | J10: 10
B12: Year | C12: Facility Load (Fixed) | D12: Facility Load (Manual Input) | E12: Internal Target (% of Facility Load) | F12: Custom Internal Target (MWh) | G12: Custom Internal Target ($) | H12: Internal Target | I12: Term
B13: =C10 -> 2015 | C13: =$F$7 -> 85000 | D13: 75000 | E13: =IF($F$6="Fixed",$F$10*$F$7*$C$6,D13*$F$10*$C$6) -> 212500 | F13: 2000 | G13: =F13*$C$6 -> 200000 | H13: =IF($F$8="Custom Target",G13,E13) -> 200000 | I13: =1-YEAR('General Input'!$C$19)+'Input Data'!B13 -> 0
B14: =B13+1 -> 2016 | C14: 85000 | D14: 80000 | E14: 212500 | F14: 1750 | G14: =F14*$C$6 -> 175000 | H14: 175000 | I14: =1-YEAR('General Input'!$C$19)+'Input Data'!B14 -> 1
B15: =B14+1 -> 2017 | C15: 85000 | D15: 78000 | E15: 212500 | F15: 1750 | G15: 175000 | H15: 175000 | I15: =1-YEAR('General Input'!$C$19)+'Input Data'!B15 -> 2
B16: =B15+1 -> 2018 | C16: 85000 | D16: 76000 | E16: 212500 | F16: 1750 | G16: 175000 | H16: 175000 | I16: =1-YEAR('General Input'!$C$19)+'Input Data'!B16 -> 3
B17: 2019 | C17: 85000 | D17: 74000 | E17: 212500 | F17: 1750 | G17: 175000 | H17: 175000 | I17: =1-YEAR('General Input'!$C$19)+'Input Data'!B17 -> 4
B18: 2020 | C18: 85000 | D18: 0 | E18: 212500 | F18: 0 | G18: 0 | H18: 0 | I18: =1-YEAR('General Input'!$C$19)+'Input Data'!B18 -> 5
B19: 2021 | C19: 85000 | D19: 0 | E19: 212500 | F19: 0 | G19: 0 | H19: 0 | I19: =1-YEAR('General Input'!$C$19)+'Input Data'!B19 -> 6
B20: 2022 | C20: 85000 | D20: 0 | E20: 212500 | F20: 0 | G20: 0 | H20: 0 | I20: =1-YEAR('General Input'!$C$19)+'Input Data'!B20 -> 7
B21: 2023 | C21: 85000 | D21: 0 | E21: 212500 | F21: 0 | G21: 0 | H21: 0 | I21: =1-YEAR('General Input'!$C$19)+'Input Data'!B21 -> 8
B22: 2024 | C22: 85000 | D22: 0 | E22: 212500 | F22: 0 | G22: 0 | H22: 0 | I22: =1-YEAR('General Input'!$C$19)+'Input Data'!B22 -> 9
B23: =B22+1 -> 2025 | C23: 85000 | D23: 0 | E23: 212500 | F23: 0 | G23: 0 | H23: 0 | I23: =1-YEAR('General Input'!$C$19)+'Input Data'!B23 -> 10
B24: 2026 | C24: 85000 | D24: 0 | E24: 212500 | F24: 0 | G24: 0 | H24: 0 | I24: =1-YEAR('General Input'!$C$19)+'Input Data'!B24 -> 11
B25: 2027 | C25: 85000 | D25: 0 | E25: 212500 | F25: 0 | G25: 0 | H25: 0 | I25: =1-YEAR('General Input'!$C$19)+'Input Data'!B25 -> 12
B26: 2028 | C26: 85000 | D26: 0 | E26: 212500 | F26: 0 | G26: 0 | H26: 0 | I26: =1-YEAR('General Input'!$C$19)+'Input Data'!B26 -> 13
H36: ="Equivalent Production ("&$J$7&")" -> Equivalent Production (Units)

Sheet Version Log (hidden)
A1: Version | B1: Changes | C1: Date
A2: 0.1 | B2: Initial draft | C2: 2016-05-20
A3: 0.2 | B3: Review with the stakeholders. Restructuring of the blueprint | C3: 2016-05-24
A4: 0.3 | B4: Final blueprint draft before the Regional Meetings. Introduction page, EMP revisions, utility data tab revisions | C4: 2016-05-26
A5: 0.4 | B5: Revised overall structure of the document as per meeting with the stakeholders. Changes to the input tab into three different sections. Addition of EM Checklist Tip panel in the EMP blueprint Removal of action items | C5: 2016-05-30
A6: Beta | C6: 2016-07-14
A7: 1 | B7: First official release. Feedback from beta testers implemented. | C7: 2016-08-02
A8: 1.1 | B8: QR table's auto-population of Facility address information caused an error when multiple cells were copy/pasted. The code was revised to resolve this. Also, the feature did not enable events following the error. Event enabler was added. Revised Technology drop down column. Gen-NG -> CCHP, Gen-Non NG -> WER & Renewable. Framework column added to the QR. | C8: 2016-08-03
